Workbook

Sheet Preamble
B2: Engineering Manual Preamble
B3: Revised | D3: 2023-December
B5: This tool provides guidance to administrative, engineering, and technical staff. Engineering practice requires that professionals use a combination of technical skills and judgment in decision making. Engineering judgment is necessary to allow decisions to account for unique site-specific conditions and considerations to provide high quality products, within budget, and to protect the public health, safety, and welfare. This tool provides the general operational guidelines; however, it is understood that adaptation, adjustments, and deviations are sometimes necessary. Innovation is a key foundational element to advance the state of engineering practice and develop more effective and efficient engineering solutions and materials. As such, it is essential that our engineering manuals provide a vehicle to promote, pilot, or implement technologies or practices that provide efficiencies and quality products, while maintaining the safety, health, and welfare of the public. It is expected when making significant or impactful deviations from the technical information from these guidance materials, that reasonable consultations with experts, technical committees, and/or policy setting bodies occur prior to actions within the timeframes allowed. It is also expected that these consultations will eliminate any potential conflicts of interest, perceived or otherwise. MDOT Leadership is committed to a culture of innovation to optimize engineering solutions. The National Society of Professional Engineers Code of Ethics for Engineering is founded on six fundamental canons. Those canons are provided below. Engineers, in the fulfillment of their professional duties, shall:
C6: 1. Hold paramount the safety, health, and welfare of the public.
C7: 2. Perform Services only in areas of their competence.
C8: 3. Issue public statement only in an objective and truthful manner.
C9: 4. Act for each employer or client as faithful agents or trustees.
C10: 5. Avoid deceptive acts.
C11: 6. Conduct themselves honorably, reasonably, ethically and lawfully so as to enhance the honor, reputation, and usefulness of the profession.

Sheet Change Log
B2: Strain Pole Scoping Tool Change Log
B4: v0.5 | C4: ALPHA VERSION
C5: • Initial release
B7: v0.6 | C7: BETA VERSION
C8: • Addressing user comments
B10: v1.0 | C10: INITIAL RELEASE
C11: • Added loading envelopes for 4-bolt strain poles and 6-bolt strain poles constructed using the SIG-020-B MDOT special detail dated 12/11/20 or earlier versions
C12: • Updated logic to account for previously standardized 4-bolt and 6-bolt loading envelopes
C13: • Added training YouTube video links to Instructions Tab

Sheet Instructions
B2: STRAIN POLE EVALUATION TOOL AND LOGIC FLOWCHART
B3: MDOT Traffic and Safety Support Area
B5: PURPOSE
B7: This tool is intended to assist in scoping intersections with steel or wood strain poles where the proposed work would change the configuration of signs or signals carried by the span wire and therefore have an impact on the structural adequacy of the poles and their foundations. For example, this tool should be used to inform projects intending to add backplates and/or tethering to existing strain poles.
B9: Training Tutorial Video Links
B10: Part 1: | C10: https://youtu.be/DQEAKf36vX0
B11: Part 2: | C11: https://youtu.be/eXJVpzXHytc
B12: Part 3: | C12: https://youtu.be/aXjFhMkTOgQ
B13: Part 4: | C13: https://youtu.be/aXjFhMkTOgQ
B15: INSTRUCTIONS
B17: Click "Enable Content" at the top of the spreadsheet in order to allow the spreadsheet to have full functionality. Using the Logic Flowchart This tool should be utilized in a step-by-step approach by pole (i.e. The entire flowchart pathway should be followed for pole 1 before moving on to strain pole 2) Various steps may have colored indicators noting when prequalifications are required. If any decisions lead to a red square, this indicates that the project will likely require an entire replacement of the given pole. Using the Evaluation Tool This tool should be utilized in a step-by-step approach in conjunction with the flow chart developed parallel to this tool. (i.e. all data for strain pole 1 should be entered starting at the top of the sheet, moving section by section to the bottom of the sheet before moving on to strain pole 2, etc.) Each sheet is representative of a different pole and should be used in such a manner (i.e. Enter all data for Pole 1 in the "Strain Pole 1" tab and all data for Pole 2 in the "Strain Pole 2" tab.) Within each sheet are yellow highlighted boxes. These boxes are where data should be entered for each pole. Utilize the provided drop down menu's to select input data. DO NOT CUT AND PASTE ANY CELLS and DO NOT FILL IN ANY NON-HIGHLIGHTED BOXES. If data is accidentally entered into an unhighlighted box, simply delete the entered data from the box or use the clear section button. Note: Some sections may highlight yellow that were previously blank based on data entered for the pole. An example of how to fill out the top section of the Pole 1 tab is shown below: To determine if loading exceeds the existing condition, utilize the Signal Span Calculation Program. In general, if additional equipment is added, the loading will increase. Always select "Yes" for loading unless existing equipment is being removed or replaced with smaller or lighter equipment. If condition ratings for poles are not known, utilize the ArcGIS database shown here: https://hntbcorp.maps.arcgis.com/apps/dashboards/b44d63a1781148089d5e6a195e532866. If you are not able to access this database, contact the Ancillary Structures unit at MDOT-Ancillary@michigan.gov. Labelling the Poles Poles should be labelled beginning with 1 at the pole located nearest to the signal controller and continuing clockwise around the intersection as shown in the figure below. The traffic designer will input at the top of each pole sheet the pole location (cardinal directions (ie. North, South, East, West) are used to determine the location of the pole relative to the intersection) and the structure ID of the strain pole, if applicable. To obtain the structure ID, contact the Ancillary Structures unit and include the site CS Spot Location,and the Latitude & Longitude Coordinates of the intersection center in the correspondence.
B39: LOADING ENVELOPES
B40: As noted in the "Load Capacity" section of this tool, use these tables to determine whether your proposed loading falls within the documented loading envelope for the listed standards. For newer strain poles, refer to the relevant statewide standards and special details.
B42: 6-Bolt Strain Pole, constructed using the SIG-020-B MDOT special detail dated 12/11/20 or earlier versions*
B44: Pole Height | D44: Span Length | F44: Weight of Generalized Load (LBS)** | J44: Max Perp. Wind Area (Tethered spans, signals with backplates) (SFT)**
B45: 30 ft | D45: Up to 100 ft | F45: 153.9 | J45: 24.7
D46: 101 ft to 120 ft | F46: 153.9 | J46: 24.7
D47: 121 ft to 150 ft | F47: 153.9 | J47: 24.7
B48: 36 ft | D48: Up to 100 ft | F48: 171 | J48: 27.4
D49: 101 ft to 120 ft | F49: 171 | J49: 27.4
D50: 121 ft to 150 ft | F50: 171 | J50: 27.4
D51: 151 ft to 175 ft | F51: 171 | J51: 27.4
D52: 176 ft to 200 ft | F52: 171 | J52: 27.4
B53: 40 ft | D53: Up to 100 ft | F53: 171 | J53: 27.4
D54: 101 ft to 120 ft | F54: 171 | J54: 27.4
D55: 121 ft to 150 ft | F55: 171 | J55: 27.4
D56: 151 ft to 175 ft | F56: 171 | J56: 27.4
D57: 176 ft to 200 ft | F57: 171 | J57: 27.4
B58: *Tie-offs and field-drilled holes are not considered.
B59: ** Weights and areas include allowance for signals, signs, and anything else carried by the cables.
B61: 4-Bolt Strain Pole*
B63: Pole Height | D63: Span Length | F63: Weight of Generalized Load (LBS)** | J63: Max Perp. Wind Area (Tethered spans, signals with backplates) (SFT)**
B64: 30 ft | D64: Up to 100 ft | F64: 51.3 | J64: 8.2
D65: 101 ft to 120 ft | F65: 51.3 | J65: 8.2
D66: 121 ft to 150 ft | F66: 51.3 | J66: 8.2
B67: 36 ft | D67: Up to 100 ft | F67: 51.3 | J67: 8.2
D68: 101 ft to 120 ft | F68: 51.3 | J68: 8.2
D69: 121 ft to 150 ft | F69: 51.3 | J69: 8.2
D70: 151 ft to 175 ft | F70: 51.3 | J70: 8.2
D71: 176 ft to 200 ft | F71: 51.3 | J71: 8.2
B72: 40 ft | D72: Up to 100 ft | F72: 51.3 | J72: 8.2
D73: 101 ft to 120 ft | F73: 51.3 | J73: 8.2
D74: 121 ft to 150 ft | F74: 51.3 | J74: 8.2
D75: 151 ft to 175 ft | F75: 51.3 | J75: 8.2
D76: 176 ft to 200 ft | F76: 51.3 | J76: 8.2
B77: *Tie-offs and field-drilled holes are not considered.
B78: ** Weights and areas include allowance for signals, signs, and anything else carried by the cables.

Sheet Logic Flowchart
B1: Strain Pole Scoping Tool
B2: FLOWCHART SHOWING THE LOGIC OF HOW USER INPUTS LEAD TO RECOMMENDATIONS.
B35: NOTES: *UTILIZE THE MOST RECENT INSPECTION THROUGH THE MDOT ANCILLARY STRUCTURES PROGRAM. SEE MIASIM FOR ADDITIONAL DETAILS. 1. EACH TIME "SPAN" IS NOTED, REFERENCE ALL SPANS CONNECTED TO THE POLE BEING EVALUATED.

Sheet Strain Pole 1 Input
B2: Intersection Description: | H2: Pole #: | I2: 1
H4: Structure ID:
B6: Pole Location: | H6: CS Spot Location:
B8: INITIAL CHECK
C10: Is additional equipment (or heavier equipment) being added to the intersection?
C11: (i.e. is the proposed loading greater than the existing loading)
B12: =IF(B10=Lists!A3,"No additional checks needed. Proceed with project","") -> 
C13: Is the existing pole embedded steel or wooden?
B14: =IF(B13="","",IF(B13=Lists!A3,"","FULL REPLACEMENT RECOMMENDED")) -> 
B17: INSPECTION RATING(S)
C18: Overall Structure Rating ≤ 4
B19: =IF(OR(B18=Lists!A10,B18=Lists!A11),"Move to Outstanding Issues Section","") -> 
C20: Foundation Component Rating ≤ 4
B21: =IF(B20="Yes", "Full Replacement Recommended","") -> 
C22: Vertical Structure Component Rating ≤ 4
C23: Element Ratings:
C24: Is any portion of the Pole or Base Plate Rated Poor or Severe?
D25: Can the poorly rated element be repaired?
D26: If it can't be repaired, can the pole be replaced in-kind?
C27: Is any portion of the Vertical Connection Rated Poor or Severe?
B28: =IF(B24="No","",IF(B26="No","Full Replacement Recommended","")) -> 
B31: OUTSTANDING ISSUES
C32: Is there an outstanding RFA or Work Rec for this pole?
D33: Does the issue highlighted in the RFA or Work Rec reduce the pole's structural capacity? (i.e. heavy rust, impact damage, etc.)
D34: Does the issue highlighted in the RFA or Work Rec require a geotechnical evaluation during the design phase? (i.e. the issue is related to movement of the foundation or damage to the foundation, etc.)
C36: Are there any construction non-conformance reports or other known issues with the pole?
D37: Does the issue highlighted in the report reduce the pole's structural capacity? (i.e. heavy rust, impact damage, etc.)
D38: Does the issue highlighted in the report require a geotechnical evaluation during the design phase? (i.e. the issue is related to movement of the foundation or damage to the foundation, etc.)
B42: LOAD CAPACITY
C43: Is the year of installation and/or are the standards known for the pole?
B44: =IF(B43=Lists!A2,"Note: See instructions sheet for load envelope.","") -> 
D45: Does the proposed design meet requirements of its signal standards and the proposed loading fall within the documented load envelope? (See "Instructions" tab for loading envelopes.)
B48: =IF(OR(B10="No",B13="Yes",B20="Yes",B26="No",B43="No",B45="Yes",B45="No"),"All Pole 1 work has been updated in the Results tab.","") -> 

Sheet Strain Pole 2 Input
B2: Intersection Description: | D2: =IF('Strain Pole 1 Input'!D2=0,"",'Strain Pole 1 Input'!D2) ->  | H2: Pole #: | I2: 2
D3: =IF('Strain Pole 1 Input'!D3=0,"",'Strain Pole 1 Input'!D3) -> 
D4: =IF('Strain Pole 1 Input'!D4=0,"",'Strain Pole 1 Input'!D4) ->  | H4: Structure ID:
B6: Pole Location: | H6: CS Spot Location: | I6: =IF('Strain Pole 1 Input'!I6=0,"",'Strain Pole 1 Input'!I6) -> 
C8: Is Pole 2 identical to Pole 1?
B9: =IF(B8=Lists!A2,"All work associated with pole 1 has been applied to pole 2.","") -> 
B11: INITIAL CHECK
C13: Is additional equipment (or heavier equipment) being added to the intersection?
C14: (i.e. is the proposed loading greater than the existing loading)
B15: =IF(B13=Lists!A3,"No additional checks needed. Proceed with project","") -> 
C16: Is the existing pole embedded steel or wooden?
B17: =IF(B16="","",IF(B16=Lists!A3,"","FULL REPLACEMENT RECOMMENDED")) -> 
B20: INSPECTION RATING(S)
C21: Overall Structure Rating ≤ 4
B22: =IF(OR(B21=Lists!A10,B21=Lists!A11),"Move to Outstanding Issues Section","") -> 
C23: Foundation Component Rating ≤ 4
B24: =IF(B23="Yes", "Full Replacement Recommended","") -> 
C25: Vertical Structure Component Rating ≤ 4
C26: Element Ratings:
C27: Is any portion of the Pole or Base Plate Rated Poor or Severe?
D28: Can the poorly rated element be repaired?
D29: If it can't be repaired, can the pole be replaced in-kind?
C30: Is any portion of the Vertical Connection Rated Poor or Severe?
B31: =IF(B27="No","",IF(B29="No","Full Replacement Recommended","")) -> 
B34: OUTSTANDING ISSUES
C35: Is there an outstanding RFA or Work Rec for this pole?
D36: Does the issue highlighted in the RFA or Work Rec reduce the pole's structural capacity? (i.e. heavy rust, impact damage, etc.)
D37: Does the issue highlighted in the RFA or Work Rec require a geotechnical evaluation during the design phase? (i.e. the issue is related to movement of the foundation or damage to the foundation, etc.)
C39: Are there any construction non-conformance reports or other known issues with the pole?
D40: Does the issue highlighted in the report reduce the pole's structural capacity? (i.e. heavy rust, impact damage, etc.)
D41: Does the issue highlighted in the report require a geotechnical evaluation during the design phase? (i.e. the issue is related to movement of the foundation or damage to the foundation, etc.)
B45: LOAD CAPACITY
C46: Is the year of installation and/or are the standards known for the pole?
B47: =IF(B46=Lists!A2,"Note: See instructions sheet for load envelope.","") -> 
D48: Does the proposed design meet requirements of its signal standards and the proposed loading fall within the documented load envelope? (See "Instructions" tab for loading envelopes.)
B51: =IF(OR(B8="Yes",B13="No",B16="Yes",B23="Yes",B29="No",B46="No",B48="Yes",B48="No"),"All Pole 2 work has been updated in the Results tab.","") -> 

Sheet Strain Pole 3 Input
B2: Intersection Description: | D2: =IF('Strain Pole 1 Input'!D2=0,"",'Strain Pole 1 Input'!D2) ->  | H2: Pole #: | I2: 3
D3: =IF('Strain Pole 1 Input'!D3=0,"",'Strain Pole 1 Input'!D3) -> 
D4: =IF('Strain Pole 1 Input'!D4=0,"",'Strain Pole 1 Input'!D4) ->  | H4: Structure ID:
B6: Pole Location: | H6: CS Spot Location: | I6: =IF('Strain Pole 1 Input'!I6=0,"",'Strain Pole 1 Input'!I6) -> 
C8: Is Pole 3 identical to another pole?
B9: =IF(B8=Lists!A19,"All work associated with pole 1 has been applied to pole 3.",IF(B8=Lists!A20,"All work associated with pole 2 has been applied to pole 3.","")) -> 
B11: INITIAL CHECK
C13: Is additional equipment (or heavier equipment) being added to the intersection?
C14: (i.e. is the proposed loading greater than the existing loading)
B15: =IF(B13=Lists!A3,"No additional checks needed. Proceed with project","") -> 
C16: Is the existing pole embedded steel or wooden?
B17: =IF(B16="","",IF(B16=Lists!A3,"","FULL REPLACEMENT RECOMMENDED")) -> 
B20: INSPECTION RATING(S)
C21: Overall Structure Rating ≤ 4
B22: =IF(OR(B21=Lists!A10,B21=Lists!A11),"Move to Outstanding Issues Section","") -> 
C23: Foundation Component Rating ≤ 4
B24: =IF(B23="Yes", "Full Replacement Recommended","") -> 
C25: Vertical Structure Component Rating ≤ 4
C26: Element Ratings:
C27: Is any portion of the Pole or Base Plate Rated Poor or Severe?
D28: Can the poorly rated element be repaired?
D29: If it can't be repaired, can the pole be replaced in-kind?
C30: Is any portion of the Vertical Connection Rated Poor or Severe?
B31: =IF(B27="No","",IF(B29="No","Full Replacement Recommended","")) -> 
B34: OUTSTANDING ISSUES
C35: Is there an outstanding RFA or Work Rec for this pole?
D36: Does the issue highlighted in the RFA or Work Rec reduce the pole's structural capacity? (i.e. heavy rust, impact damage, etc.)
D37: Does the issue highlighted in the RFA or Work Rec require a geotechnical evaluation during the design phase? (i.e. the issue is related to movement of the foundation or damage to the foundation, etc.)
C39: Are there any construction non-conformance reports or other known issues with the pole?
D40: Does the issue highlighted in the report reduce the pole's structural capacity? (i.e. heavy rust, impact damage, etc.)
D41: Does the issue highlighted in the report require a geotechnical evaluation during the design phase? (i.e. the issue is related to movement of the foundation or damage to the foundation, etc.)
B45: LOAD CAPACITY
C46: Is the year of installation and/or are the standards known for the pole?
B47: =IF(B46=Lists!A2,"Note: See instructions sheet for load envelope.","") -> 
D48: Does the proposed design meet requirements of its signal standards and the proposed loading fall within the documented load envelope? (See "Instructions" tab for loading envelopes.)
B51: =IF(OR(B8=Lists!A19,B8=Lists!A20,B13="No",B16="Yes",B23="Yes",B29="No",B46="No",B48="Yes",B48="No"),"All Pole 3 work has been updated in the Results tab.","") -> 

Sheet Strain Pole 4 Input
B2: Intersection Description: | D2: =IF('Strain Pole 1 Input'!D2=0,"",'Strain Pole 1 Input'!D2) ->  | H2: Pole #: | I2: 4
D3: =IF('Strain Pole 1 Input'!D3=0,"",'Strain Pole 1 Input'!D3) -> 
D4: =IF('Strain Pole 1 Input'!D4=0,"",'Strain Pole 1 Input'!D4) ->  | H4: Structure ID:
B6: Pole Location: | H6: CS Spot Location: | I6: =IF('Strain Pole 1 Input'!I6=0,"",'Strain Pole 1 Input'!I6) -> 
C8: Is Pole 4 identical to another pole?
B9: =IF(B8=Lists!A19,"All work associated with pole 1 has been applied to pole 4.",IF(B8=Lists!A20,"All work associated with pole 2 has been applied to pole 4.",IF(B8=Lists!A21,"All work associated with pole 3 has been applied to pole 4.",""))) -> 
B11: INITIAL CHECK
C13: Is additional equipment (or heavier equipment) being added to the intersection?
C14: (i.e. is the proposed loading greater than the existing loading)
B15: =IF(B13=Lists!A3,"No additional checks needed. Proceed with project","") -> 
C16: Is the existing pole embedded steel or wooden?
B17: =IF(B16="","",IF(B16=Lists!A3,"","FULL REPLACEMENT RECOMMENDED")) -> 
B20: INSPECTION RATING(S)
C21: Overall Structure Rating ≤ 4
B22: =IF(OR(B21=Lists!A10,B21=Lists!A11),"Move to Outstanding Issues Section","") -> 
C23: Foundation Component Rating ≤ 4
B24: =IF(B23="Yes", "Full Replacement Recommended","") -> 
C25: Vertical Structure Component Rating ≤ 4
C26: Element Ratings:
C27: Is any portion of the Pole or Base Plate Rated Poor or Severe?
D28: Can the poorly rated element be repaired?
D29: If it can't be repaired, can the pole be replaced in-kind?
C30: Is any portion of the Vertical Connection Rated Poor or Severe?
B31: =IF(B27="No","",IF(B29="No","Full Replacement Recommended","")) -> 
B34: OUTSTANDING ISSUES
C35: Is there an outstanding RFA or Work Rec for this pole?
D36: Does the issue highlighted in the RFA or Work Rec reduce the pole's structural capacity? (i.e. heavy rust, impact damage, etc.)
D37: Does the issue highlighted in the RFA or Work Rec require a geotechnical evaluation during the design phase? (i.e. the issue is related to movement of the foundation or damage to the foundation, etc.)
C39: Are there any construction non-conformance reports or other known issues with the pole?
D40: Does the issue highlighted in the report reduce the pole's structural capacity? (i.e. heavy rust, impact damage, etc.)
D41: Does the issue highlighted in the report require a geotechnical evaluation during the design phase? (i.e. the issue is related to movement of the foundation or damage to the foundation, etc.)
B45: LOAD CAPACITY
C46: Is the year of installation and/or are the standards known for the pole?
B47: =IF(B46=Lists!A2,"Note: See instructions sheet for load envelope.","") -> 
D48: Does the proposed design meet requirements of its signal standards and the proposed loading fall within the documented load envelope? (See "Instructions" tab for loading envelopes.)
B51: =IF(OR(B8=Lists!A19,B8=Lists!A20,B8=Lists!A21,B13="No",B16="Yes",B23="Yes",B29="No",B46="No",B48="Yes",B48="No"),"All Pole 4 work has been updated in the Results tab.","") -> 

Sheet Strain Pole 5 Input
B2: Intersection Description: | D2: =IF('Strain Pole 1 Input'!D2=0,"",'Strain Pole 1 Input'!D2) ->  | H2: Pole #: | I2: 5
D3: =IF('Strain Pole 1 Input'!D3=0,"",'Strain Pole 1 Input'!D3) -> 
D4: =IF('Strain Pole 1 Input'!D4=0,"",'Strain Pole 1 Input'!D4) ->  | H4: Structure ID:
B6: Pole Location: | H6: CS Spot Location: | I6: =IF('Strain Pole 1 Input'!I6=0,"",'Strain Pole 1 Input'!I6) -> 
C8: Is Pole 5 identical to another pole?
B9: =IF(B8=Lists!A19,"All work associated with pole 1 has been applied to pole 5.",IF(B8=Lists!A20,"All work associated with pole 2 has been applied to pole 5.",IF(B8=Lists!A21,"All work associated with pole 3 has been applied to pole 5.",IF(B8=Lists!A22,"All work associated with pole 4 has been applied to pole 5.","")))) -> 
B11: INITIAL CHECK
C13: Is additional equipment (or heavier equipment) being added to the intersection?
C14: (i.e. is the proposed loading greater than the existing loading)
B15: =IF(B13=Lists!A3,"No additional checks needed. Proceed with project","") -> 
C16: Is the existing pole embedded steel or wooden?
B17: =IF(B16="","",IF(B16=Lists!A3,"","FULL REPLACEMENT RECOMMENDED")) -> 
B20: INSPECTION RATING(S)
C21: Overall Structure Rating ≤ 4
B22: =IF(OR(B21=Lists!A10,B21=Lists!A11),"Move to Outstanding Issues Section","") -> 
C23: Foundation Component Rating ≤ 4
B24: =IF(B23="Yes", "Full Replacement Recommended","") -> 
C25: Vertical Structure Component Rating ≤ 4
C26: Element Ratings:
C27: Is any portion of the Pole or Base Plate Rated Poor or Severe?
D28: Can the poorly rated element be repaired?
D29: If it can't be repaired, can the pole be replaced in-kind?
C30: Is any portion of the Vertical Connection Rated Poor or Severe?
B31: =IF(B27="No","",IF(B29="No","Full Replacement Recommended","")) -> 
B34: OUTSTANDING ISSUES
C35: Is there an outstanding RFA or Work Rec for this pole?
D36: Does the issue highlighted in the RFA or Work Rec reduce the pole's structural capacity? (i.e. heavy rust, impact damage, etc.)
D37: Does the issue highlighted in the RFA or Work Rec require a geotechnical evaluation during the design phase? (i.e. the issue is related to movement of the foundation or damage to the foundation, etc.)
C39: Are there any construction non-conformance reports or other known issues with the pole?
D40: Does the issue highlighted in the report reduce the pole's structural capacity? (i.e. heavy rust, impact damage, etc.)
D41: Does the issue highlighted in the report require a geotechnical evaluation during the design phase? (i.e. the issue is related to movement of the foundation or damage to the foundation, etc.)
B45: LOAD CAPACITY
C46: Is the year of installation and/or are the standards known for the pole?
B47: =IF(B46=Lists!A2,"Note: See instructions sheet for load envelope.","") -> 
D48: Does the proposed design meet requirements of its signal standards and the proposed loading fall within the documented load envelope? (See "Instructions" tab for loading envelopes.)
B51: =IF(OR(B8=Lists!A19,B8=Lists!A20,B8=Lists!A21,B8=Lists!A22,B13="No",B16="Yes",B23="Yes",B29="No",B46="No",B48="Yes",B48="No"),"All Pole 5 work has been updated in the Results tab.","") -> 

Sheet Strain Pole 6 Input
B2: Intersection Description: | D2: =IF('Strain Pole 1 Input'!D2=0,"",'Strain Pole 1 Input'!D2) ->  | H2: Pole #: | I2: 6
D3: =IF('Strain Pole 1 Input'!D3=0,"",'Strain Pole 1 Input'!D3) -> 
D4: =IF('Strain Pole 1 Input'!D4=0,"",'Strain Pole 1 Input'!D4) ->  | H4: Structure ID:
B6: Pole Location: | H6: CS Spot Location: | I6: =IF('Strain Pole 1 Input'!I6=0,"",'Strain Pole 1 Input'!I6) -> 
C8: Is Pole 6 identical to another pole?
B9: =IF(B8=Lists!A19,"All work associated with pole 1 has been applied to pole 6.",IF(B8=Lists!A20,"All work associated with pole 2 has been applied to pole 6.",IF(B8=Lists!A21,"All work associated with pole 3 has been applied to pole 6.",IF(B8=Lists!A22,"All work associated with pole 4 has been applied to pole 6.",IF(B8=Lists!A23,"All work associated with pole 5 has been applied to pole 6.",""))))) -> 
B11: INITIAL CHECK
C13: Is additional equipment (or heavier equipment) being added to the intersection?
C14: (i.e. is the proposed loading greater than the existing loading)
B15: =IF(B13=Lists!A3,"No additional checks needed. Proceed with project","") -> 
C16: Is the existing pole embedded steel or wooden?
B17: =IF(B16="","",IF(B16=Lists!A3,"","FULL REPLACEMENT RECOMMENDED")) -> 
B20: INSPECTION RATING(S)
C21: Overall Structure Rating ≤ 4
B22: =IF(OR(B21=Lists!A10,B21=Lists!A11),"Move to Outstanding Issues Section","") -> 
C23: Foundation Component Rating ≤ 4
B24: =IF(B23="Yes", "Full Replacement Recommended","") -> 
C25: Vertical Structure Component Rating ≤ 4
C26: Element Ratings:
C27: Is any portion of the Pole or Base Plate Rated Poor or Severe?
D28: Can the poorly rated element be repaired?
D29: If it can't be repaired, can the pole be replaced in-kind?
C30: Is any portion of the Vertical Connection Rated Poor or Severe?
B31: =IF(B27="No","",IF(B29="No","Full Replacement Recommended","")) -> 
B34: OUTSTANDING ISSUES
C35: Is there an outstanding RFA or Work Rec for this pole?
D36: Does the issue highlighted in the RFA or Work Rec reduce the pole's structural capacity? (i.e. heavy rust, impact damage, etc.)
D37: Does the issue highlighted in the RFA or Work Rec require a geotechnical evaluation during the design phase? (i.e. the issue is related to movement of the foundation or damage to the foundation, etc.)
C39: Are there any construction non-conformance reports or other known issues with the pole?
D40: Does the issue highlighted in the report reduce the pole's structural capacity? (i.e. heavy rust, impact damage, etc.)
D41: Does the issue highlighted in the report require a geotechnical evaluation during the design phase? (i.e. the issue is related to movement of the foundation or damage to the foundation, etc.)
B45: LOAD CAPACITY
C46: Is the year of installation and/or are the standards known for the pole?
B47: =IF(B46=Lists!A2,"Note: See instructions sheet for load envelope.","") -> 
D48: Does the proposed design meet requirements of its signal standards and the proposed loading fall within the documented load envelope? (See "Instructions" tab for loading envelopes.)
B51: =IF(OR(B8=Lists!A19,B8=Lists!A20,B8=Lists!A21,B8=Lists!A22,B8=Lists!A23,B13="No",B16="Yes",B23="Yes",B29="No",B46="No",B48="Yes",B48="No"),"All Pole 6 work has been updated in the Results tab.","") -> 

Sheet Strain Pole 7 Input
B2: Intersection Description: | D2: =IF('Strain Pole 1 Input'!D2=0,"",'Strain Pole 1 Input'!D2) ->  | H2: Pole #: | I2: 7
D3: =IF('Strain Pole 1 Input'!D3=0,"",'Strain Pole 1 Input'!D3) -> 
D4: =IF('Strain Pole 1 Input'!D4=0,"",'Strain Pole 1 Input'!D4) ->  | H4: Structure ID:
B6: Pole Location: | H6: CS Spot Location: | I6: =IF('Strain Pole 1 Input'!I6=0,"",'Strain Pole 1 Input'!I6) -> 
C8: Is Pole 7 identical to another pole?
B9: =IF(B8=Lists!A19,"All work associated with pole 1 has been applied to pole 7.",IF(B8=Lists!A20,"All work associated with pole 2 has been applied to pole 7.",IF(B8=Lists!A21,"All work associated with pole 3 has been applied to pole 7.",IF(B8=Lists!A22,"All work associated with pole 4 has been applied to pole 7.",IF(B8=Lists!A23,"All work associated with pole 5 has been applied to pole 7.",IF(B8=Lists!A24,"All work associated with pole 6 has been applied to pole 7.","")))))) -> 
B11: INITIAL CHECK
C13: Is additional equipment (or heavier equipment) being added to the intersection?
C14: (i.e. is the proposed loading greater than the existing loading)
B15: =IF(B13=Lists!A3,"No additional checks needed. Proceed with project","") -> 
C16: Is the existing pole embedded steel or wooden?
B17: =IF(B16="","",IF(B16=Lists!A3,"","FULL REPLACEMENT RECOMMENDED")) -> 
B20: INSPECTION RATING(S)
C21: Overall Structure Rating ≤ 4
B22: =IF(OR(B21=Lists!A10,B21=Lists!A11),"Move to Outstanding Issues Section","") -> 
C23: Foundation Component Rating ≤ 4
B24: =IF(B23="Yes", "Full Replacement Recommended","") -> 
C25: Vertical Structure Component Rating ≤ 4
C26: Element Ratings:
C27: Is any portion of the Pole or Base Plate Rated Poor or Severe?
D28: Can the poorly rated element be repaired?
D29: If it can't be repaired, can the pole be replaced in-kind?
C30: Is any portion of the Vertical Connection Rated Poor or Severe?
B31: =IF(B27="No","",IF(B29="No","Full Replacement Recommended","")) -> 
B34: OUTSTANDING ISSUES
C35: Is there an outstanding RFA or Work Rec for this pole?
D36: Does the issue highlighted in the RFA or Work Rec reduce the pole's structural capacity? (i.e. heavy rust, impact damage, etc.)
D37: Does the issue highlighted in the RFA or Work Rec require a geotechnical evaluation during the design phase? (i.e. the issue is related to movement of the foundation or damage to the foundation, etc.)
C39: Are there any construction non-conformance reports or other known issues with the pole?
D40: Does the issue highlighted in the report reduce the pole's structural capacity? (i.e. heavy rust, impact damage, etc.)
D41: Does the issue highlighted in the report require a geotechnical evaluation during the design phase? (i.e. the issue is related to movement of the foundation or damage to the foundation, etc.)
B45: LOAD CAPACITY
C46: Is the year of installation and/or are the standards known for the pole?
B47: =IF(B46=Lists!A2,"Note: See instructions sheet for load envelope.","") -> 
D48: Does the proposed design meet requirements of its signal standards and the proposed loading fall within the documented load envelope? (See "Instructions" tab for loading envelopes.)
B51: =IF(OR(B8=Lists!A19,B8=Lists!A20,B8=Lists!A21,B8=Lists!A22,B8=Lists!A23,B8=Lists!A24,B13="No",B16="Yes",B23="Yes",B29="No",B46="No",B48="Yes",B48="No"),"All Pole 7 work has been updated in the Results tab.","") -> 

Sheet Strain Pole 8 Input
B2: Intersection Description: | D2: =IF('Strain Pole 1 Input'!D2=0,"",'Strain Pole 1 Input'!D2) ->  | H2: Pole #: | I2: 8
D3: =IF('Strain Pole 1 Input'!D3=0,"",'Strain Pole 1 Input'!D3) -> 
D4: =IF('Strain Pole 1 Input'!D4=0,"",'Strain Pole 1 Input'!D4) ->  | H4: Structure ID:
B6: Pole Location: | H6: CS Spot Location: | I6: =IF('Strain Pole 1 Input'!I6=0,"",'Strain Pole 1 Input'!I6) -> 
C8: Is Pole 8 identical to another pole?
B9: =IF(B8=Lists!A19,"All work associated with pole 1 has been applied to pole 8.",IF(B8=Lists!A20,"All work associated with pole 2 has been applied to pole 8.",IF(B8=Lists!A21,"All work associated with pole 3 has been applied to pole 8.",IF(B8=Lists!A22,"All work associated with pole 4 has been applied to pole 8.",IF(B8=Lists!A23,"All work associated with pole 5 has been applied to pole 8.",IF(B8=Lists!A24,"All work associated with pole 6 has been applied to pole 8.",IF(B8=Lists!A25,"All work associated with pole 7 has been applied to pole 8.",""))))))) -> 
B11: INITIAL CHECK
C13: Is additional equipment (or heavier equipment) being added to the intersection?
C14: (i.e. is the proposed loading greater than the existing loading)
B15: =IF(B13=Lists!A3,"No additional checks needed. Proceed with project","") -> 
C16: Is the existing pole embedded steel or wooden?
B17: =IF(B16="","",IF(B16=Lists!A3,"","FULL REPLACEMENT RECOMMENDED")) -> 
B20: INSPECTION RATING(S)
C21: Overall Structure Rating ≤ 4
B22: =IF(OR(B21=Lists!A10,B21=Lists!A11),"Move to Outstanding Issues Section","") -> 
C23: Foundation Component Rating ≤ 4
B24: =IF(B23="Yes", "Full Replacement Recommended","") -> 
C25: Vertical Structure Component Rating ≤ 4
C26: Element Ratings:
C27: Is any portion of the Pole or Base Plate Rated Poor or Severe?
D28: Can the poorly rated element be repaired?
D29: If it can't be repaired, can the pole be replaced in-kind?
C30: Is any portion of the Vertical Connection Rated Poor or Severe?
B31: =IF(B27="No","",IF(B29="No","Full Replacement Recommended","")) -> 
B34: OUTSTANDING ISSUES
C35: Is there an outstanding RFA or Work Rec for this pole?
D36: Does the issue highlighted in the RFA or Work Rec reduce the pole's structural capacity? (i.e. heavy rust, impact damage, etc.)
D37: Does the issue highlighted in the RFA or Work Rec require a geotechnical evaluation during the design phase? (i.e. the issue is related to movement of the foundation or damage to the foundation, etc.)
C39: Are there any construction non-conformance reports or other known issues with the pole?
D40: Does the issue highlighted in the report reduce the pole's structural capacity? (i.e. heavy rust, impact damage, etc.)
D41: Does the issue highlighted in the report require a geotechnical evaluation during the design phase? (i.e. the issue is related to movement of the foundation or damage to the foundation, etc.)
B45: LOAD CAPACITY
C46: Is the year of installation and/or are the standards known for the pole?
B47: =IF(B46=Lists!A2,"Note: See instructions sheet for load envelope.","") -> 
D48: Does the proposed design meet requirements of its signal standards and the proposed loading fall within the documented load envelope? (See "Instructions" tab for loading envelopes.)
B51: =IF(OR(B8=Lists!A19,B8=Lists!A20,B8=Lists!A21,B8=Lists!A22,B8=Lists!A23,B8=Lists!A24,B8=Lists!A25,B13="No",B16="Yes",B23="Yes",B29="No",B46="No",B48="Yes",B48="No"),"All Pole 8 work has been updated in the Results tab.","") -> 

Sheet Strain Pole 9 Input
B2: Intersection Description: | D2: =IF('Strain Pole 1 Input'!D2=0,"",'Strain Pole 1 Input'!D2) ->  | H2: Pole #: | I2: 9
D3: =IF('Strain Pole 1 Input'!D3=0,"",'Strain Pole 1 Input'!D3) -> 
D4: =IF('Strain Pole 1 Input'!D4=0,"",'Strain Pole 1 Input'!D4) ->  | H4: Structure ID:
B6: Pole Location: | H6: CS Spot Location: | I6: =IF('Strain Pole 1 Input'!I6=0,"",'Strain Pole 1 Input'!I6) -> 
C8: Is Pole 9 identical to another pole?
B9: =IF(B8=Lists!A19,"All work associated with pole 1 has been applied to pole 9.",IF(B8=Lists!A20,"All work associated with pole 2 has been applied to pole 9.",IF(B8=Lists!A21,"All work associated with pole 3 has been applied to pole 9.",IF(B8=Lists!A22,"All work associated with pole 4 has been applied to pole 9.",IF(B8=Lists!A23,"All work associated with pole 5 has been applied to pole 9.",IF(B8=Lists!A24,"All work associated with pole 6 has been applied to pole 9.",IF(B8=Lists!A25,"All work associated with pole 7 has been applied to pole 9.",IF(B8=Lists!A26,"All work associated with pole 8 has been applied to pole 9.","")))))))) -> 
B11: INITIAL CHECK
C13: Is additional equipment (or heavier equipment) being added to the intersection?
C14: (i.e. is the proposed loading greater than the existing loading)
B15: =IF(B13=Lists!A3,"No additional checks needed. Proceed with project","") -> 
C16: Is the existing pole embedded steel or wooden?
B17: =IF(B16="","",IF(B16=Lists!A3,"","FULL REPLACEMENT RECOMMENDED")) -> 
B20: INSPECTION RATING(S)
C21: Overall Structure Rating ≤ 4
B22: =IF(OR(B21=Lists!A10,B21=Lists!A11),"Move to Outstanding Issues Section","") -> 
C23: Foundation Component Rating ≤ 4
B24: =IF(B23="Yes", "Full Replacement Recommended","") -> 
C25: Vertical Structure Component Rating ≤ 4
C26: Element Ratings:
C27: Is any portion of the Pole or Base Plate Rated Poor or Severe?
D28: Can the poorly rated element be repaired?
D29: If it can't be repaired, can the pole be replaced in-kind?
C30: Is any portion of the Vertical Connection Rated Poor or Severe?
B31: =IF(B27="No","",IF(B29="No","Full Replacement Recommended","")) -> 
B34: OUTSTANDING ISSUES
C35: Is there an outstanding RFA or Work Rec for this pole?
D36: Does the issue highlighted in the RFA or Work Rec reduce the pole's structural capacity? (i.e. heavy rust, impact damage, etc.)
D37: Does the issue highlighted in the RFA or Work Rec require a geotechnical evaluation during the design phase? (i.e. the issue is related to movement of the foundation or damage to the foundation, etc.)
C39: Are there any construction non-conformance reports or other known issues with the pole?
D40: Does the issue highlighted in the report reduce the pole's structural capacity? (i.e. heavy rust, impact damage, etc.)
D41: Does the issue highlighted in the report require a geotechnical evaluation during the design phase? (i.e. the issue is related to movement of the foundation or damage to the foundation, etc.)
B45: LOAD CAPACITY
C46: Is the year of installation and/or are the standards known for the pole?
B47: =IF(B46=Lists!A2,"Note: See instructions sheet for load envelope.","") -> 
D48: Does the proposed design meet requirements of its signal standards and the proposed loading fall within the documented load envelope? (See "Instructions" tab for loading envelopes.)
B51: =IF(OR(B8=Lists!A19,B8=Lists!A20,B8=Lists!A21,B8=Lists!A22,B8=Lists!A23,B8=Lists!A24,B8=Lists!A25,B8=Lists!A26,B13="No",B16="Yes",B23="Yes",B29="No",B46="No",B48="Yes",B48="No"),"All Pole 9 work has been updated in the Results tab.","") -> 

Sheet Strain Pole 10 Input
B2: Intersection Description: | D2: =IF('Strain Pole 1 Input'!D2=0,"",'Strain Pole 1 Input'!D2) ->  | H2: Pole #: | I2: 10
D3: =IF('Strain Pole 1 Input'!D3=0,"",'Strain Pole 1 Input'!D3) -> 
D4: =IF('Strain Pole 1 Input'!D4=0,"",'Strain Pole 1 Input'!D4) ->  | H4: Structure ID:
B6: Pole Location: | H6: CS Spot Location: | I6: =IF('Strain Pole 1 Input'!I6=0,"",'Strain Pole 1 Input'!I6) -> 
C8: Is Pole 10 identical to another pole?
B9: =IF(B8=Lists!A19,"All work associated with pole 1 has been applied to pole 10.",IF(B8=Lists!A20,"All work associated with pole 2 has been applied to pole 10.",IF(B8=Lists!A21,"All work associated with pole 3 has been applied to pole 10.",IF(B8=Lists!A22,"All work associated with pole 4 has been applied to pole 10.",IF(B8=Lists!A23,"All work associated with pole 5 has been applied to pole 10.",IF(B8=Lists!A24,"All work associated with pole 6 has been applied to pole 10.",IF(B8=Lists!A25,"All work associated with pole 7 has been applied to pole 10.",IF(B8=Lists!A26,"All work associated with pole 8 has been applied to pole 10.",IF(B8=Lists!A27,"All work associated with pole 9 has been applied to pole 10.",""))))))))) -> 
B11: INITIAL CHECK
C13: Is additional equipment (or heavier equipment) being added to the intersection?
C14: (i.e. is the proposed loading greater than the existing loading)
B15: =IF(B13=Lists!A3,"No additional checks needed. Proceed with project","") -> 
C16: Is the existing pole embedded steel or wooden?
B17: =IF(B16="","",IF(B16=Lists!A3,"","FULL REPLACEMENT RECOMMENDED")) -> 
B20: INSPECTION RATING(S)
C21: Overall Structure Rating ≤ 4
B22: =IF(OR(B21=Lists!A10,B21=Lists!A11),"Move to Outstanding Issues Section","") -> 
C23: Foundation Component Rating ≤ 4
B24: =IF(B23="Yes", "Full Replacement Recommended","") -> 
C25: Vertical Structure Component Rating ≤ 4
C26: Element Ratings:
C27: Is any portion of the Pole or Base Plate Rated Poor or Severe?
D28: Can the poorly rated element be repaired?
D29: If it can't be repaired, can the pole be replaced in-kind?
C30: Is any portion of the Vertical Connection Rated Poor or Severe?
B31: =IF(B27="No","",IF(B29="No","Full Replacement Recommended","")) -> 
B34: OUTSTANDING ISSUES
C35: Is there an outstanding RFA or Work Rec for this pole?
D36: Does the issue highlighted in the RFA or Work Rec reduce the pole's structural capacity? (i.e. heavy rust, impact damage, etc.)
D37: Does the issue highlighted in the RFA or Work Rec require a geotechnical evaluation during the design phase? (i.e. the issue is related to movement of the foundation or damage to the foundation, etc.)
C39: Are there any construction non-conformance reports or other known issues with the pole?
D40: Does the issue highlighted in the report reduce the pole's structural capacity? (i.e. heavy rust, impact damage, etc.)
D41: Does the issue highlighted in the report require a geotechnical evaluation during the design phase? (i.e. the issue is related to movement of the foundation or damage to the foundation, etc.)
B45: LOAD CAPACITY
C46: Is the year of installation and/or are the standards known for the pole?
B47: =IF(B46=Lists!A2,"Note: See instructions sheet for load envelope.","") -> 
D48: Does the proposed design meet requirements of its signal standards and the proposed loading fall within the documented load envelope? (See "Instructions" tab for loading envelopes.)
B51: =IF(OR(B8=Lists!A19,B8=Lists!A20,B8=Lists!A21,B8=Lists!A22,B8=Lists!A23,B8=Lists!A24,B8=Lists!A25,B8=Lists!A26,B8=Lists!A27,B13="No",B16="Yes",B23="Yes",B29="No",B46="No",B48="Yes",B48="No"),"All Pole 9 work has been updated in the Results tab.","") -> 

Sheet RESULTS
D2: Project Name: | K2: Intersection Name:
K3: MDOT CS:
D4: MDOT JN: | K4: MI County:
B7: INCLUDE THE FOLLOWING WITH WORK
B8: POLE # | C8: POLE LOCATION | D8: Proceed as is. No additional checks needed. | E8: Full Replacement of Foundation and Pole Recommended | F8: 1a. Structural Prequalification Needed for Site-Specific Structural Design | G8: 1b. Structural Prequalification Needed for Repair Design | H8: 2. Field Investigation to gather data for site-specific analysis of existing poles (Gather material properties, structural component sizes, soil properties, etc.) | I8: 3. Geotechnical Prequalification | J8: Replace pole in-kind and replace vertical connections. | K8: Repair base plate/pole | L8: Replace Vertical Connections | M8: Replace Horizontal Elements (i.e. span wire, span wire connections, luminaire arm, etc.) | N8: Outstanding repairs from RFAs and Work Recs | O8: Repairs to address construction non-conformance report(s) or other known issues.
B9: Strain Pole 1 | C9: ='Strain Pole 1 Input'!C6 -> 0 | D9: =IF('Strain Pole 1 Input'!B$10="No","X",IF(AND(E$9:O$9="",'Strain Pole 1 Input'!B$45=Lists!A$2),"X","")) ->  | E9: =IF('Strain Pole 1 Input'!B$14="Full Replacement Recommended","X",IF('Strain Pole 1 Input'!B$21="Full Replacement Recommended","X",IF('Strain Pole 1 Input'!B$28="Full Replacement Recommended","X",""))) ->  | F9: =IF('Strain Pole 1 Input'!B$43="No","X",IF('Strain Pole 1 Input'!B$45=Lists!A$3,"X",IF('Strain Pole 1 Input'!B$45=Lists!A$3,"X",""))) ->  | G9: =IF('Strain Pole 1 Input'!B$25="Yes","X",IF(OR('Strain Pole 1 Input'!B$33="Yes",'Strain Pole 1 Input'!B$34="Yes"),"X",IF(OR('Strain Pole 1 Input'!B$37="Yes",'Strain Pole 1 Input'!B$38="Yes"),"X",""))) ->  | H9: =IF('Strain Pole 1 Input'!B$18="Not Rated","X",IF(OR('Strain Pole 1 Input'!B$37="Yes",'Strain Pole 1 Input'!B$38="Yes"),"X",IF('Strain Pole 1 Input'!B$43="No","X",""))) ->  | I9: =IF('Strain Pole 1 Input'!B$34="Yes","X",IF('Strain Pole 1 Input'!B$38="Yes","X",IF('Strain Pole 1 Input'!B$43="No","X",""))) ->  | J9: =IF('Strain Pole 1 Input'!B$26="Yes","X","") ->  | K9: =IF('Strain Pole 1 Input'!B$25="Yes","X","") ->  | L9: =IF('Strain Pole 1 Input'!B$27="Yes","X","") ->  | M9: =IF('Strain Pole 1 Input'!B$22="No","X","") ->  | N9: =IF('Strain Pole 1 Input'!B$32="Yes","X","") ->  | O9: =IF('Strain Pole 1 Input'!B$36="Yes","X","") -> 
B10: Strain Pole 2 | C10: ='Strain Pole 2 Input'!C6 -> 0 | D10: =IF('Strain Pole 2 Input'!B$8=Lists!A$2,RESULTS!D$9,IF('Strain Pole 2 Input'!B$13="No","X",IF(AND(E$10:O$10="",'Strain Pole 2 Input'!B$48=Lists!A$2),"X",""))) ->  | E10: =IF('Strain Pole 2 Input'!B$8=Lists!A$2,RESULTS!E$9,IF('Strain Pole 2 Input'!B$17="Full Replacement Recommended","X",IF('Strain Pole 2 Input'!B$24="Full Replacement Recommended","X",IF('Strain Pole 2 Input'!B$31="Full Replacement Recommended","X","")))) ->  | F10: =IF('Strain Pole 2 Input'!B$8=Lists!A$2,RESULTS!F$9,IF('Strain Pole 2 Input'!B$46="No","X",IF('Strain Pole 2 Input'!B$48=Lists!A$3,"X",""))) ->  | G10: =IF('Strain Pole 2 Input'!B$8=Lists!A$2,RESULTS!G$9,IF('Strain Pole 2 Input'!B$28="Yes","X",IF(OR('Strain Pole 2 Input'!B$36="Yes",'Strain Pole 2 Input'!B$37="Yes"),"X",IF(OR('Strain Pole 2 Input'!B$40="Yes",'Strain Pole 2 Input'!B$41="Yes"),"X","")))) ->  | H10: =IF('Strain Pole 2 Input'!B$8=Lists!A$2,RESULTS!H$9,IF('Strain Pole 2 Input'!B$21="Not Rated","X",IF(OR('Strain Pole 2 Input'!B$40="Yes",'Strain Pole 2 Input'!B$41="Yes"),"X",IF('Strain Pole 2 Input'!B$46="No","X","")))) ->  | I10: =IF('Strain Pole 2 Input'!B$8=Lists!A$2,RESULTS!I$9,IF('Strain Pole 2 Input'!B$37="Yes","X",IF('Strain Pole 2 Input'!B$41="Yes","X",IF('Strain Pole 2 Input'!B$46="No","X","")))) ->  | J10: =IF('Strain Pole 2 Input'!B$8=Lists!A$2,RESULTS!J$9,IF('Strain Pole 2 Input'!B$29="Yes","X","")) ->  | K10: =IF('Strain Pole 2 Input'!B$8=Lists!A$2,RESULTS!K$9,IF('Strain Pole 2 Input'!B$28="Yes","X","")) ->  | L10: =IF('Strain Pole 2 Input'!B$8=Lists!A$2,RESULTS!L$9,IF('Strain Pole 2 Input'!B$30="Yes","X","")) ->  | M10: =IF('Strain Pole 2 Input'!B$8=Lists!A$2,RESULTS!M$9,IF('Strain Pole 2 Input'!B$25="No","X","")) ->  | N10: =IF('Strain Pole 2 Input'!B$8=Lists!A$2,RESULTS!N$9,IF('Strain Pole 2 Input'!B$35="Yes","X","")) ->  | O10: =IF('Strain Pole 2 Input'!B$8=Lists!A$2,RESULTS!O$9,IF('Strain Pole 2 Input'!B$39="Yes","X","")) -> 
B11: Strain Pole 3 | C11: ='Strain Pole 3 Input'!C6 -> 0 | D11: =IF('Strain Pole 3 Input'!B$8=Lists!A$19,RESULTS!D$9,IF('Strain Pole 3 Input'!B$8=Lists!A$20,RESULTS!D$10,IF('Strain Pole 3 Input'!B$13="No","X",IF(AND(E$11:O$11="",'Strain Pole 3 Input'!B$48=Lists!A$2),"X","")))) ->  | E11: =IF('Strain Pole 3 Input'!B$8=Lists!A$19,RESULTS!E$9,IF('Strain Pole 3 Input'!B$8=Lists!A$20,RESULTS!E$10,IF('Strain Pole 3 Input'!B$17="Full Replacement Recommended","X",IF('Strain Pole 3 Input'!B$24="Full Replacement Recommended","X",IF('Strain Pole 3 Input'!B$31="Full Replacement Recommended","X",""))))) ->  | F11: =IF('Strain Pole 3 Input'!B$8=Lists!A$19,RESULTS!F$9,IF('Strain Pole 3 Input'!B$8=Lists!A$20,RESULTS!F$10,IF('Strain Pole 3 Input'!B$46="No","X",IF('Strain Pole 3 Input'!B$48=Lists!A$3,"X","")))) ->  | G11: =IF('Strain Pole 3 Input'!B$8=Lists!A$19,RESULTS!G$9,IF('Strain Pole 3 Input'!B$8=Lists!A$20,RESULTS!G$10,IF('Strain Pole 3 Input'!B$28="Yes","X",IF(OR('Strain Pole 3 Input'!B$36="Yes",'Strain Pole 3 Input'!B$37="Yes"),"X",IF(OR('Strain Pole 3 Input'!B$40="Yes",'Strain Pole 3 Input'!B$41="Yes"),"X",""))))) ->  | H11: =IF('Strain Pole 3 Input'!B$8=Lists!A$19,RESULTS!H$9,IF('Strain Pole 3 Input'!B$8=Lists!A$20,RESULTS!H$10,IF('Strain Pole 3 Input'!B$21="Not Rated","X",IF(OR('Strain Pole 3 Input'!B$40="Yes",'Strain Pole 3 Input'!B$41="Yes"),"X",IF('Strain Pole 3 Input'!B$46="No","X",""))))) ->  | I11: =IF('Strain Pole 3 Input'!B$8=Lists!A$19,RESULTS!I$9,IF('Strain Pole 3 Input'!B$8=Lists!A$20,RESULTS!I$10,IF('Strain Pole 3 Input'!B$37="Yes","X",IF('Strain Pole 3 Input'!B$41="Yes","X",IF('Strain Pole 3 Input'!B$46="No","X",""))))) ->  | J11: =IF('Strain Pole 3 Input'!B$8=Lists!A$19,RESULTS!J$9,IF('Strain Pole 3 Input'!B$8=Lists!A$20,RESULTS!J$10,IF('Strain Pole 3 Input'!B$29="Yes","X",""))) ->  | K11: =IF('Strain Pole 3 Input'!B$8=Lists!A$19,RESULTS!K$9,IF('Strain Pole 3 Input'!B$8=Lists!A$20,RESULTS!K$10,IF('Strain Pole 3 Input'!B$28="Yes","X",""))) ->  | L11: =IF('Strain Pole 3 Input'!B$8=Lists!A$19,RESULTS!L$9,IF('Strain Pole 3 Input'!B$8=Lists!A$20,RESULTS!L$10,IF('Strain Pole 3 Input'!B$30="Yes","X",""))) ->  | M11: =IF('Strain Pole 3 Input'!B$8=Lists!A$19,RESULTS!M$9,IF('Strain Pole 3 Input'!B$8=Lists!A$20,RESULTS!M$10,IF('Strain Pole 3 Input'!B$25="No","X",""))) ->  | N11: =IF('Strain Pole 3 Input'!B$8=Lists!A$19,RESULTS!N$9,IF('Strain Pole 3 Input'!B$8=Lists!A$20,RESULTS!N$10,IF('Strain Pole 3 Input'!B$35="Yes","X",""))) ->  | O11: =IF('Strain Pole 3 Input'!B$8=Lists!A$19,RESULTS!O$9,IF('Strain Pole 3 Input'!B$8=Lists!A$20,RESULTS!O$10,IF('Strain Pole 3 Input'!B$39="Yes","X",""))) -> 
B12: Strain Pole 4 | C12: ='Strain Pole 4 Input'!C6 -> 0 | D12: =IF('Strain Pole 4 Input'!B$8=Lists!A$19,RESULTS!D$9,IF('Strain Pole 4 Input'!B$8=Lists!A$20,RESULTS!D$10,IF('Strain Pole 4 Input'!B$8=Lists!A$21,RESULTS!D$11,IF('Strain Pole 4 Input'!B$13="No","X",IF(AND(E$12:O$12="",'Strain Pole 4 Input'!B$48=Lists!A$2),"X",""))))) ->  | E12: =IF('Strain Pole 4 Input'!B$8=Lists!A$19,RESULTS!E$9,IF('Strain Pole 4 Input'!B$8=Lists!A$20,RESULTS!E$10,IF('Strain Pole 4 Input'!B$8=Lists!A$21,RESULTS!E$11,IF('Strain Pole 4 Input'!B$17="Full Replacement Recommended","X",IF('Strain Pole 4 Input'!B$24="Full Replacement Recommended","X",IF('Strain Pole 4 Input'!B$31="Full Replacement Recommended","X","")))))) ->  | F12: =IF('Strain Pole 4 Input'!B$8=Lists!A$19,RESULTS!F$9,IF('Strain Pole 4 Input'!B$8=Lists!A$20,RESULTS!F$10,IF('Strain Pole 4 Input'!B$8=Lists!A$21,RESULTS!F$11,IF('Strain Pole 4 Input'!B$46="No","X",IF('Strain Pole 4 Input'!B$48=Lists!A$3,"X",""))))) ->  | G12: =IF('Strain Pole 4 Input'!B$8=Lists!A$19,RESULTS!G$9,IF('Strain Pole 4 Input'!B$8=Lists!A$20,RESULTS!G$10,IF('Strain Pole 4 Input'!B$8=Lists!A$21,RESULTS!G$11,IF('Strain Pole 4 Input'!B$28="Yes","X",IF(OR('Strain Pole 4 Input'!B$36="Yes",'Strain Pole 4 Input'!B$37="Yes"),"X",IF(OR('Strain Pole 4 Input'!B$40="Yes",'Strain Pole 4 Input'!B$41="Yes"),"X","")))))) ->  | H12: =IF('Strain Pole 4 Input'!B$8=Lists!A$19,RESULTS!H$9,IF('Strain Pole 4 Input'!B$8=Lists!A$20,RESULTS!H$10,IF('Strain Pole 4 Input'!B$8=Lists!A$21,RESULTS!H$11,IF('Strain Pole 4 Input'!B$21="Not Rated","X",IF(OR('Strain Pole 4 Input'!B$40="Yes",'Strain Pole 4 Input'!B$41="Yes"),"X",IF('Strain Pole 4 Input'!B$46="No","X","")))))) ->  | I12: =IF('Strain Pole 4 Input'!B$8=Lists!A$19,RESULTS!I$9,IF('Strain Pole 4 Input'!B$8=Lists!A$20,RESULTS!I$10,IF('Strain Pole 4 Input'!B$8=Lists!A$21,RESULTS!I$11,IF('Strain Pole 4 Input'!B$37="Yes","X",IF('Strain Pole 4 Input'!B$41="Yes","X",IF('Strain Pole 4 Input'!B$46="No","X","")))))) ->  | J12: =IF('Strain Pole 4 Input'!B$8=Lists!A$19,RESULTS!J$9,IF('Strain Pole 4 Input'!B$8=Lists!A$20,RESULTS!J$10,IF('Strain Pole 4 Input'!B$8=Lists!A$21,RESULTS!J$11,IF('Strain Pole 4 Input'!B$29="Yes","X","")))) ->  | K12: =IF('Strain Pole 4 Input'!B$8=Lists!A$19,RESULTS!K$9,IF('Strain Pole 4 Input'!B$8=Lists!A$20,RESULTS!K$10,IF('Strain Pole 4 Input'!B$8=Lists!A$21,RESULTS!K$11,IF('Strain Pole 4 Input'!B$28="Yes","X","")))) ->  | L12: =IF('Strain Pole 4 Input'!B$8=Lists!A$19,RESULTS!L$9,IF('Strain Pole 4 Input'!B$8=Lists!A$20,RESULTS!L$10,IF('Strain Pole 4 Input'!B$8=Lists!A$21,RESULTS!L$11,IF('Strain Pole 4 Input'!B$30="Yes","X","")))) ->  | M12: =IF('Strain Pole 4 Input'!B$8=Lists!A$19,RESULTS!M$9,IF('Strain Pole 4 Input'!B$8=Lists!A$20,RESULTS!M$10,IF('Strain Pole 4 Input'!B$8=Lists!A$21,RESULTS!M$11,IF('Strain Pole 4 Input'!B$25="No","X","")))) ->  | N12: =IF('Strain Pole 4 Input'!B$8=Lists!A$19,RESULTS!N$9,IF('Strain Pole 4 Input'!B$8=Lists!A$20,RESULTS!N$10,IF('Strain Pole 4 Input'!B$8=Lists!A$21,RESULTS!N$11,IF('Strain Pole 4 Input'!B$35="Yes","X","")))) ->  | O12: =IF('Strain Pole 4 Input'!B$8=Lists!A$19,RESULTS!O$9,IF('Strain Pole 4 Input'!B$8=Lists!A$20,RESULTS!O$10,IF('Strain Pole 4 Input'!B$8=Lists!A$21,RESULTS!O$11,IF('Strain Pole 4 Input'!B$39="Yes","X","")))) -> 
B13: Strain Pole 5 | C13: ='Strain Pole 5 Input'!C6 -> 0 | D13: =IF('Strain Pole 5 Input'!B$8=Lists!A$19,RESULTS!D$9,IF('Strain Pole 5 Input'!B$8=Lists!A$20,RESULTS!D$10,IF('Strain Pole 5 Input'!B$8=Lists!A$21,RESULTS!D$11,IF('Strain Pole 5 Input'!B$8=Lists!A$22,RESULTS!D$12,IF('Strain Pole 5 Input'!B$13="No","X",IF(AND(E$13:O$13="",'Strain Pole 5 Input'!B$48=Lists!A$2),"X","")))))) ->  | E13: =IF('Strain Pole 5 Input'!B$8=Lists!A$19,RESULTS!E$9,IF('Strain Pole 5 Input'!B$8=Lists!A$20,RESULTS!E$10,IF('Strain Pole 5 Input'!B$8=Lists!A$21,RESULTS!E$11,IF('Strain Pole 5 Input'!B$8=Lists!A$22,RESULTS!E$12,IF('Strain Pole 5 Input'!B$17="Full Replacement Recommended","X",IF('Strain Pole 5 Input'!B$24="Full Replacement Recommended","X",IF('Strain Pole 5 Input'!B$31="Full Replacement Recommended","X",""))))))) ->  | F13: =IF('Strain Pole 5 Input'!B$8=Lists!A$19,RESULTS!F$9,IF('Strain Pole 5 Input'!B$8=Lists!A$20,RESULTS!F$10,IF('Strain Pole 5 Input'!B$8=Lists!A$21,RESULTS!F$11,IF('Strain Pole 5 Input'!B$8=Lists!A$22,RESULTS!F$12,IF('Strain Pole 5 Input'!B$46="No","X",IF('Strain Pole 5 Input'!B$48=Lists!A$3,"X","")))))) ->  | G13: =IF('Strain Pole 5 Input'!B$8=Lists!A$19,RESULTS!G$9,IF('Strain Pole 5 Input'!B$8=Lists!A$20,RESULTS!G$10,IF('Strain Pole 5 Input'!B$8=Lists!A$21,RESULTS!G$11,IF('Strain Pole 5 Input'!B$8=Lists!A$22,RESULTS!G$12,IF('Strain Pole 5 Input'!B$28="Yes","X",IF(OR('Strain Pole 5 Input'!B$36="Yes",'Strain Pole 5 Input'!B$37="Yes"),"X",IF(OR('Strain Pole 5 Input'!B$40="Yes",'Strain Pole 5 Input'!B$41="Yes"),"X",""))))))) ->  | H13: =IF('Strain Pole 5 Input'!B$8=Lists!A$19,RESULTS!H$9,IF('Strain Pole 5 Input'!B$8=Lists!A$20,RESULTS!H$10,IF('Strain Pole 5 Input'!B$8=Lists!A$21,RESULTS!H$11,IF('Strain Pole 5 Input'!B$8=Lists!A$22,RESULTS!H$12,IF('Strain Pole 5 Input'!B$21="Not Rated","X",IF(OR('Strain Pole 5 Input'!B$40="Yes",'Strain Pole 5 Input'!B$41="Yes"),"X",IF('Strain Pole 5 Input'!B$46="No","X",""))))))) ->  | I13: =IF('Strain Pole 5 Input'!B$8=Lists!A$19,RESULTS!I$9,IF('Strain Pole 5 Input'!B$8=Lists!A$20,RESULTS!I$10,IF('Strain Pole 5 Input'!B$8=Lists!A$21,RESULTS!I$11,IF('Strain Pole 5 Input'!B$8=Lists!A$22,RESULTS!I$12,IF('Strain Pole 5 Input'!B$37="Yes","X",IF('Strain Pole 5 Input'!B$41="Yes","X",IF('Strain Pole 5 Input'!B$46="No","X",""))))))) ->  | J13: =IF('Strain Pole 5 Input'!B$8=Lists!A$19,RESULTS!J$9,IF('Strain Pole 5 Input'!B$8=Lists!A$20,RESULTS!J$10,IF('Strain Pole 5 Input'!B$8=Lists!A$21,RESULTS!J$11,IF('Strain Pole 5 Input'!B$8=Lists!A$22,RESULTS!J$12,IF('Strain Pole 5 Input'!B$29="Yes","X",""))))) ->  | K13: =IF('Strain Pole 5 Input'!B$8=Lists!A$19,RESULTS!K$9,IF('Strain Pole 5 Input'!B$8=Lists!A$20,RESULTS!K$10,IF('Strain Pole 5 Input'!B$8=Lists!A$21,RESULTS!K$11,IF('Strain Pole 5 Input'!B$8=Lists!A$22,RESULTS!K$12,IF('Strain Pole 5 Input'!B$28="Yes","X",""))))) ->  | L13: =IF('Strain Pole 5 Input'!B$8=Lists!A$19,RESULTS!L$9,IF('Strain Pole 5 Input'!B$8=Lists!A$20,RESULTS!L$10,IF('Strain Pole 5 Input'!B$8=Lists!A$21,RESULTS!L$11,IF('Strain Pole 5 Input'!B$8=Lists!A$22,RESULTS!L$12,IF('Strain Pole 5 Input'!B$30="Yes","X",""))))) ->  | M13: =IF('Strain Pole 5 Input'!B$8=Lists!A$19,RESULTS!M$9,IF('Strain Pole 5 Input'!B$8=Lists!A$20,RESULTS!M$10,IF('Strain Pole 5 Input'!B$8=Lists!A$21,RESULTS!M$11,IF('Strain Pole 5 Input'!B$8=Lists!A$22,RESULTS!M$12,IF('Strain Pole 5 Input'!B$25="No","X",""))))) ->  | N13: =IF('Strain Pole 5 Input'!B$8=Lists!A$19,RESULTS!N$9,IF('Strain Pole 5 Input'!B$8=Lists!A$20,RESULTS!N$10,IF('Strain Pole 5 Input'!B$8=Lists!A$21,RESULTS!N$11,IF('Strain Pole 5 Input'!B$8=Lists!A$22,RESULTS!N$12,IF('Strain Pole 5 Input'!B$35="Yes","X",""))))) ->  | O13: =IF('Strain Pole 5 Input'!B$8=Lists!A$19,RESULTS!O$9,IF('Strain Pole 5 Input'!B$8=Lists!A$20,RESULTS!O$10,IF('Strain Pole 5 Input'!B$8=Lists!A$21,RESULTS!O$11,IF('Strain Pole 5 Input'!B$8=Lists!A$22,RESULTS!O$12,IF('Strain Pole 5 Input'!B$39="Yes","X",""))))) -> 
B14: Strain Pole 6 | C14: ='Strain Pole 6 Input'!C6 -> 0 | D14: =IF('Strain Pole 6 Input'!B$8=Lists!A$19,RESULTS!D$9,IF('Strain Pole 6 Input'!B$8=Lists!A$20,RESULTS!D$10,IF('Strain Pole 6 Input'!B$8=Lists!A$21,RESULTS!D$11,IF('Strain Pole 6 Input'!B$8=Lists!A$22,RESULTS!D$12,IF('Strain Pole 6 Input'!B$8=Lists!A$23,RESULTS!D$13,IF('Strain Pole 6 Input'!B$13="No","X",IF(AND(E$14:O$14="",'Strain Pole 6 Input'!B$48=Lists!A$2),"X",""))))))) ->  | E14: =IF('Strain Pole 6 Input'!B$8=Lists!A$19,RESULTS!E$9,IF('Strain Pole 6 Input'!B$8=Lists!A$20,RESULTS!E$10,IF('Strain Pole 6 Input'!B$8=Lists!A$21,RESULTS!E$11,IF('Strain Pole 6 Input'!B$8=Lists!A$22,RESULTS!E$12,IF('Strain Pole 6 Input'!B$8=Lists!A$23,RESULTS!E$13,IF('Strain Pole 6 Input'!B$17="Full Replacement Recommended","X",IF('Strain Pole 6 Input'!B$24="Full Replacement Recommended","X",IF('Strain Pole 6 Input'!B$31="Full Replacement Recommended","X","")))))))) ->  | F14: =IF('Strain Pole 6 Input'!B$8=Lists!A$19,RESULTS!F$9,IF('Strain Pole 6 Input'!B$8=Lists!A$20,RESULTS!F$10,IF('Strain Pole 6 Input'!B$8=Lists!A$21,RESULTS!F$11,IF('Strain Pole 6 Input'!B$8=Lists!A$22,RESULTS!F$12,IF('Strain Pole 6 Input'!B$8=Lists!A$23,RESULTS!F$13,IF('Strain Pole 6 Input'!B$46="No","X",IF('Strain Pole 6 Input'!B$48=Lists!A$3,"X",""))))))) ->  | G14: =IF('Strain Pole 6 Input'!B$8=Lists!A$19,RESULTS!G$9,IF('Strain Pole 6 Input'!B$8=Lists!A$20,RESULTS!G$10,IF('Strain Pole 6 Input'!B$8=Lists!A$21,RESULTS!G$11,IF('Strain Pole 6 Input'!B$8=Lists!A$22,RESULTS!G$12,IF('Strain Pole 6 Input'!B$8=Lists!A$23,RESULTS!G$13,IF('Strain Pole 6 Input'!B$28="Yes","X",IF(OR('Strain Pole 6 Input'!B$36="Yes",'Strain Pole 6 Input'!B$37="Yes"),"X",IF(OR('Strain Pole 6 Input'!B$40="Yes",'Strain Pole 6 Input'!B$41="Yes"),"X","")))))))) ->  | H14: =IF('Strain Pole 6 Input'!B$8=Lists!A$19,RESULTS!H$9,IF('Strain Pole 6 Input'!B$8=Lists!A$20,RESULTS!H$10,IF('Strain Pole 6 Input'!B$8=Lists!A$21,RESULTS!H$11,IF('Strain Pole 6 Input'!B$8=Lists!A$22,RESULTS!H$12,IF('Strain Pole 6 Input'!B$8=Lists!A$23,RESULTS!H$13,IF('Strain Pole 6 Input'!B$21="Not Rated","X",IF(OR('Strain Pole 6 Input'!B$40="Yes",'Strain Pole 6 Input'!B$41="Yes"),"X",IF('Strain Pole 6 Input'!B$46="No","X","")))))))) ->  | I14: =IF('Strain Pole 6 Input'!B$8=Lists!A$19,RESULTS!I$9,IF('Strain Pole 6 Input'!B$8=Lists!A$20,RESULTS!I$10,IF('Strain Pole 6 Input'!B$8=Lists!A$21,RESULTS!I$11,IF('Strain Pole 6 Input'!B$8=Lists!A$22,RESULTS!I$12,IF('Strain Pole 6 Input'!B$8=Lists!A$23,RESULTS!I$13,IF('Strain Pole 6 Input'!B$37="Yes","X",IF('Strain Pole 6 Input'!B$41="Yes","X",IF('Strain Pole 6 Input'!B$46="No","X","")))))))) ->  | J14: =IF('Strain Pole 6 Input'!B$8=Lists!A$19,RESULTS!J$9,IF('Strain Pole 6 Input'!B$8=Lists!A$20,RESULTS!J$10,IF('Strain Pole 6 Input'!B$8=Lists!A$21,RESULTS!J$11,IF('Strain Pole 6 Input'!B$8=Lists!A$22,RESULTS!J$12,IF('Strain Pole 6 Input'!B$8=Lists!A$23,RESULTS!J$13,IF('Strain Pole 6 Input'!B$29="Yes","X","")))))) ->  | K14: =IF('Strain Pole 6 Input'!B$8=Lists!A$19,RESULTS!K$9,IF('Strain Pole 6 Input'!B$8=Lists!A$20,RESULTS!K$10,IF('Strain Pole 6 Input'!B$8=Lists!A$21,RESULTS!K$11,IF('Strain Pole 6 Input'!B$8=Lists!A$22,RESULTS!K$12,IF('Strain Pole 6 Input'!B$8=Lists!A$23,RESULTS!K$13,IF('Strain Pole 6 Input'!B$28="Yes","X","")))))) ->  | L14: =IF('Strain Pole 6 Input'!B$8=Lists!A$19,RESULTS!L$9,IF('Strain Pole 6 Input'!B$8=Lists!A$20,RESULTS!L$10,IF('Strain Pole 6 Input'!B$8=Lists!A$21,RESULTS!L$11,IF('Strain Pole 6 Input'!B$8=Lists!A$22,RESULTS!L$12,IF('Strain Pole 6 Input'!B$8=Lists!A$23,RESULTS!L$13,IF('Strain Pole 6 Input'!B$30="Yes","X","")))))) ->  | M14: =IF('Strain Pole 6 Input'!B$8=Lists!A$19,RESULTS!M$9,IF('Strain Pole 6 Input'!B$8=Lists!A$20,RESULTS!M$10,IF('Strain Pole 6 Input'!B$8=Lists!A$21,RESULTS!M$11,IF('Strain Pole 6 Input'!B$8=Lists!A$22,RESULTS!M$12,IF('Strain Pole 6 Input'!B$8=Lists!A$23,RESULTS!M$13,IF('Strain Pole 6 Input'!B$25="No","X","")))))) ->  | N14: =IF('Strain Pole 6 Input'!B$8=Lists!A$19,RESULTS!N$9,IF('Strain Pole 6 Input'!B$8=Lists!A$20,RESULTS!N$10,IF('Strain Pole 6 Input'!B$8=Lists!A$21,RESULTS!N$11,IF('Strain Pole 6 Input'!B$8=Lists!A$22,RESULTS!N$12,IF('Strain Pole 6 Input'!B$8=Lists!A$23,RESULTS!N$13,IF('Strain Pole 6 Input'!B$35="Yes","X","")))))) ->  | O14: =IF('Strain Pole 6 Input'!B$8=Lists!A$19,RESULTS!O$9,IF('Strain Pole 6 Input'!B$8=Lists!A$20,RESULTS!O$10,IF('Strain Pole 6 Input'!B$8=Lists!A$21,RESULTS!O$11,IF('Strain Pole 6 Input'!B$8=Lists!A$22,RESULTS!O$12,IF('Strain Pole 6 Input'!B$8=Lists!A$23,RESULTS!O$13,IF('Strain Pole 6 Input'!B$39="Yes","X","")))))) -> 
B15: Strain Pole 7 | C15: ='Strain Pole 7 Input'!C6 -> 0 | D15: =IF('Strain Pole 7 Input'!B$8=Lists!A$19,RESULTS!D$9,IF('Strain Pole 7 Input'!B$8=Lists!A$20,RESULTS!D$10,IF('Strain Pole 7 Input'!B$8=Lists!A$21,RESULTS!D$11,IF('Strain Pole 7 Input'!B$8=Lists!A$22,RESULTS!D$12,IF('Strain Pole 7 Input'!B$8=Lists!A$23,RESULTS!D$13,IF('Strain Pole 7 Input'!B$8=Lists!A$24,RESULTS!D$14,IF('Strain Pole 7 Input'!B$13="No","X",IF(AND(E$15:O$15="",'Strain Pole 7 Input'!B$48=Lists!A$2),"X","")))))))) ->  | E15: =IF('Strain Pole 7 Input'!B$8=Lists!A$19,RESULTS!E$9,IF('Strain Pole 7 Input'!B$8=Lists!A$20,RESULTS!E$10,IF('Strain Pole 7 Input'!B$8=Lists!A$21,RESULTS!E$11,IF('Strain Pole 7 Input'!B$8=Lists!A$22,RESULTS!E$12,IF('Strain Pole 7 Input'!B$8=Lists!A$23,RESULTS!E$13,IF('Strain Pole 7 Input'!B$8=Lists!A$24,RESULTS!E$14,IF('Strain Pole 7 Input'!B$17="Full Replacement Recommended","X",IF('Strain Pole 7 Input'!B$24="Full Replacement Recommended","X",IF('Strain Pole 7 Input'!B$31="Full Replacement Recommended","X",""))))))))) ->  | F15: =IF('Strain Pole 7 Input'!B$8=Lists!A$19,RESULTS!F$9,IF('Strain Pole 7 Input'!B$8=Lists!A$20,RESULTS!F$10,IF('Strain Pole 7 Input'!B$8=Lists!A$21,RESULTS!F$11,IF('Strain Pole 7 Input'!B$8=Lists!A$22,RESULTS!F$12,IF('Strain Pole 7 Input'!B$8=Lists!A$23,RESULTS!F$13,IF('Strain Pole 7 Input'!B$8=Lists!A$24,RESULTS!F$14,IF('Strain Pole 7 Input'!B$46="No","X",IF('Strain Pole 7 Input'!B$48=Lists!A$3,"X","")))))))) ->  | G15: =IF('Strain Pole 7 Input'!B$8=Lists!A$19,RESULTS!G$9,IF('Strain Pole 7 Input'!B$8=Lists!A$20,RESULTS!G$10,IF('Strain Pole 7 Input'!B$8=Lists!A$21,RESULTS!G$11,IF('Strain Pole 7 Input'!B$8=Lists!A$22,RESULTS!G$12,IF('Strain Pole 7 Input'!B$8=Lists!A$23,RESULTS!G$13,IF('Strain Pole 7 Input'!B$8=Lists!A$24,RESULTS!G$14,IF('Strain Pole 7 Input'!B$28="Yes","X",IF(OR('Strain Pole 7 Input'!B$36="Yes",'Strain Pole 7 Input'!B$37="Yes"),"X",IF(OR('Strain Pole 7 Input'!B$40="Yes",'Strain Pole 7 Input'!B$41="Yes"),"X",""))))))))) ->  | H15: =IF('Strain Pole 7 Input'!B$8=Lists!A$19,RESULTS!H$9,IF('Strain Pole 7 Input'!B$8=Lists!A$20,RESULTS!H$10,IF('Strain Pole 7 Input'!B$8=Lists!A$21,RESULTS!H$11,IF('Strain Pole 7 Input'!B$8=Lists!A$22,RESULTS!H$12,IF('Strain Pole 7 Input'!B$8=Lists!A$23,RESULTS!H$13,IF('Strain Pole 7 Input'!B$8=Lists!A$24,RESULTS!H$14,IF('Strain Pole 7 Input'!B$21="Not Rated","X",IF(OR('Strain Pole 7 Input'!B$40="Yes",'Strain Pole 7 Input'!B$41="Yes"),"X",IF('Strain Pole 7 Input'!B$46="No","X",""))))))))) ->  | I15: =IF('Strain Pole 7 Input'!B$8=Lists!A$19,RESULTS!I$9,IF('Strain Pole 7 Input'!B$8=Lists!A$20,RESULTS!I$10,IF('Strain Pole 7 Input'!B$8=Lists!A$21,RESULTS!I$11,IF('Strain Pole 7 Input'!B$8=Lists!A$22,RESULTS!I$12,IF('Strain Pole 7 Input'!B$8=Lists!A$23,RESULTS!I$13,IF('Strain Pole 7 Input'!B$8=Lists!A$24,RESULTS!I$14,IF('Strain Pole 7 Input'!B$37="Yes","X",IF('Strain Pole 7 Input'!B$41="Yes","X",IF('Strain Pole 7 Input'!B$46="No","X",""))))))))) ->  | J15: =IF('Strain Pole 7 Input'!B$8=Lists!A$19,RESULTS!J$9,IF('Strain Pole 7 Input'!B$8=Lists!A$20,RESULTS!J$10,IF('Strain Pole 7 Input'!B$8=Lists!A$21,RESULTS!J$11,IF('Strain Pole 7 Input'!B$8=Lists!A$22,RESULTS!J$12,IF('Strain Pole 7 Input'!B$8=Lists!A$23,RESULTS!J$13,IF('Strain Pole 7 Input'!B$8=Lists!A$24,RESULTS!J$14,IF('Strain Pole 7 Input'!B$29="Yes","X",""))))))) ->  | K15: =IF('Strain Pole 7 Input'!B$8=Lists!A$19,RESULTS!K$9,IF('Strain Pole 7 Input'!B$8=Lists!A$20,RESULTS!K$10,IF('Strain Pole 7 Input'!B$8=Lists!A$21,RESULTS!K$11,IF('Strain Pole 7 Input'!B$8=Lists!A$22,RESULTS!K$12,IF('Strain Pole 7 Input'!B$8=Lists!A$23,RESULTS!K$13,IF('Strain Pole 7 Input'!B$8=Lists!A$24,RESULTS!K$14,IF('Strain Pole 7 Input'!B$28="Yes","X",""))))))) ->  | L15: =IF('Strain Pole 7 Input'!B$8=Lists!A$19,RESULTS!L$9,IF('Strain Pole 7 Input'!B$8=Lists!A$20,RESULTS!L$10,IF('Strain Pole 7 Input'!B$8=Lists!A$21,RESULTS!L$11,IF('Strain Pole 7 Input'!B$8=Lists!A$22,RESULTS!L$12,IF('Strain Pole 7 Input'!B$8=Lists!A$23,RESULTS!L$13,IF('Strain Pole 7 Input'!B$8=Lists!A$24,RESULTS!L$14,IF('Strain Pole 7 Input'!B$30="Yes","X",""))))))) ->  | M15: =IF('Strain Pole 7 Input'!B$8=Lists!A$19,RESULTS!M$9,IF('Strain Pole 7 Input'!B$8=Lists!A$20,RESULTS!M$10,IF('Strain Pole 7 Input'!B$8=Lists!A$21,RESULTS!M$11,IF('Strain Pole 7 Input'!B$8=Lists!A$22,RESULTS!M$12,IF('Strain Pole 7 Input'!B$8=Lists!A$23,RESULTS!M$13,IF('Strain Pole 7 Input'!B$8=Lists!A$24,RESULTS!M$14,IF('Strain Pole 7 Input'!B$25="No","X",""))))))) ->  | N15: =IF('Strain Pole 7 Input'!B$8=Lists!A$19,RESULTS!N$9,IF('Strain Pole 7 Input'!B$8=Lists!A$20,RESULTS!N$10,IF('Strain Pole 7 Input'!B$8=Lists!A$21,RESULTS!N$11,IF('Strain Pole 7 Input'!B$8=Lists!A$22,RESULTS!N$12,IF('Strain Pole 7 Input'!B$8=Lists!A$23,RESULTS!N$13,IF('Strain Pole 7 Input'!B$8=Lists!A$24,RESULTS!N$14,IF('Strain Pole 7 Input'!B$35="Yes","X",""))))))) ->  | O15: =IF('Strain Pole 7 Input'!B$8=Lists!A$19,RESULTS!O$9,IF('Strain Pole 7 Input'!B$8=Lists!A$20,RESULTS!O$10,IF('Strain Pole 7 Input'!B$8=Lists!A$21,RESULTS!O$11,IF('Strain Pole 7 Input'!B$8=Lists!A$22,RESULTS!O$12,IF('Strain Pole 7 Input'!B$8=Lists!A$23,RESULTS!O$13,IF('Strain Pole 7 Input'!B$8=Lists!A$24,RESULTS!O$14,IF('Strain Pole 7 Input'!B$39="Yes","X",""))))))) -> 
B16: Strain Pole 8 | C16: ='Strain Pole 8 Input'!C6 -> 0 | D16: =IF('Strain Pole 8 Input'!B$8=Lists!A$19,RESULTS!D$9,IF('Strain Pole 8 Input'!B$8=Lists!A$20,RESULTS!D$10,IF('Strain Pole 8 Input'!B$8=Lists!A$21,RESULTS!D$11,IF('Strain Pole 8 Input'!B$8=Lists!A$22,RESULTS!D$12,IF('Strain Pole 8 Input'!B$8=Lists!A$23,RESULTS!D$13,IF('Strain Pole 8 Input'!B$8=Lists!A$24,RESULTS!D$14,IF('Strain Pole 8 Input'!B$8=Lists!A$25,RESULTS!D$15,IF('Strain Pole 8 Input'!B$13="No","X",IF(AND(E$16:O$16="",'Strain Pole 8 Input'!B$48=Lists!A$2),"X",""))))))))) ->  | E16: =IF('Strain Pole 8 Input'!B$8=Lists!A$19,RESULTS!E$9,IF('Strain Pole 8 Input'!B$8=Lists!A$20,RESULTS!E$10,IF('Strain Pole 8 Input'!B$8=Lists!A$21,RESULTS!E$11,IF('Strain Pole 8 Input'!B$8=Lists!A$22,RESULTS!E$12,IF('Strain Pole 8 Input'!B$8=Lists!A$23,RESULTS!E$13,IF('Strain Pole 8 Input'!B$8=Lists!A$24,RESULTS!E$14,IF('Strain Pole 8 Input'!B$8=Lists!A$25,RESULTS!E$15,IF('Strain Pole 8 Input'!B$17="Full Replacement Recommended","X",IF('Strain Pole 8 Input'!B$24="Full Replacement Recommended","X",IF('Strain Pole 8 Input'!B$31="Full Replacement Recommended","X","")))))))))) ->  | F16: =IF('Strain Pole 8 Input'!B$8=Lists!A$19,RESULTS!F$9,IF('Strain Pole 8 Input'!B$8=Lists!A$20,RESULTS!F$10,IF('Strain Pole 8 Input'!B$8=Lists!A$21,RESULTS!F$11,IF('Strain Pole 8 Input'!B$8=Lists!A$22,RESULTS!F$12,IF('Strain Pole 8 Input'!B$8=Lists!A$23,RESULTS!F$13,IF('Strain Pole 8 Input'!B$8=Lists!A$24,RESULTS!F$14,IF('Strain Pole 8 Input'!B$8=Lists!A$25,RESULTS!F$15,IF('Strain Pole 8 Input'!B$46="No","X",IF('Strain Pole 8 Input'!B$48=Lists!A$3,"X",""))))))))) ->  | G16: =IF('Strain Pole 8 Input'!B$8=Lists!A$19,RESULTS!G$9,IF('Strain Pole 8 Input'!B$8=Lists!A$20,RESULTS!G$10,IF('Strain Pole 8 Input'!B$8=Lists!A$21,RESULTS!G$11,IF('Strain Pole 8 Input'!B$8=Lists!A$22,RESULTS!G$12,IF('Strain Pole 8 Input'!B$8=Lists!A$23,RESULTS!G$13,IF('Strain Pole 8 Input'!B$8=Lists!A$24,RESULTS!G$14,IF('Strain Pole 8 Input'!B$8=Lists!A$25,RESULTS!G$15,IF('Strain Pole 8 Input'!B$28="Yes","X",IF(OR('Strain Pole 8 Input'!B$36="Yes",'Strain Pole 8 Input'!B$37="Yes"),"X",IF(OR('Strain Pole 8 Input'!B$40="Yes",'Strain Pole 8 Input'!B$41="Yes"),"X","")))))))))) ->  | H16: =IF('Strain Pole 8 Input'!B$8=Lists!A$19,RESULTS!H$9,IF('Strain Pole 8 Input'!B$8=Lists!A$20,RESULTS!H$10,IF('Strain Pole 8 Input'!B$8=Lists!A$21,RESULTS!H$11,IF('Strain Pole 8 Input'!B$8=Lists!A$22,RESULTS!H$12,IF('Strain Pole 8 Input'!B$8=Lists!A$23,RESULTS!H$13,IF('Strain Pole 8 Input'!B$8=Lists!A$24,RESULTS!H$14,IF('Strain Pole 8 Input'!B$8=Lists!A$25,RESULTS!H$15,IF('Strain Pole 8 Input'!B$21="Not Rated","X",IF(OR('Strain Pole 8 Input'!B$40="Yes",'Strain Pole 8 Input'!B$41="Yes"),"X",IF('Strain Pole 8 Input'!B$46="No","X","")))))))))) ->  | I16: =IF('Strain Pole 8 Input'!B$8=Lists!A$19,RESULTS!I$9,IF('Strain Pole 8 Input'!B$8=Lists!A$20,RESULTS!I$10,IF('Strain Pole 8 Input'!B$8=Lists!A$21,RESULTS!I$11,IF('Strain Pole 8 Input'!B$8=Lists!A$22,RESULTS!I$12,IF('Strain Pole 8 Input'!B$8=Lists!A$23,RESULTS!I$13,IF('Strain Pole 8 Input'!B$8=Lists!A$24,RESULTS!I$14,IF('Strain Pole 8 Input'!B$8=Lists!A$25,RESULTS!I$15,IF('Strain Pole 8 Input'!B$37="Yes","X",IF('Strain Pole 8 Input'!B$41="Yes","X",IF('Strain Pole 8 Input'!B$46="No","X","")))))))))) ->  | J16: =IF('Strain Pole 8 Input'!B$8=Lists!A$19,RESULTS!J$9,IF('Strain Pole 8 Input'!B$8=Lists!A$20,RESULTS!J$10,IF('Strain Pole 8 Input'!B$8=Lists!A$21,RESULTS!J$11,IF('Strain Pole 8 Input'!B$8=Lists!A$22,RESULTS!J$12,IF('Strain Pole 8 Input'!B$8=Lists!A$23,RESULTS!J$13,IF('Strain Pole 8 Input'!B$8=Lists!A$24,RESULTS!J$14,IF('Strain Pole 8 Input'!B$8=Lists!A$25,RESULTS!J$15,IF('Strain Pole 8 Input'!B$29="Yes","X","")))))))) ->  | K16: =IF('Strain Pole 8 Input'!B$8=Lists!A$19,RESULTS!K$9,IF('Strain Pole 8 Input'!B$8=Lists!A$20,RESULTS!K$10,IF('Strain Pole 8 Input'!B$8=Lists!A$21,RESULTS!K$11,IF('Strain Pole 8 Input'!B$8=Lists!A$22,RESULTS!K$12,IF('Strain Pole 8 Input'!B$8=Lists!A$23,RESULTS!K$13,IF('Strain Pole 8 Input'!B$8=Lists!A$24,RESULTS!K$14,IF('Strain Pole 8 Input'!B$8=Lists!A$25,RESULTS!K$15,IF('Strain Pole 8 Input'!B$28="Yes","X","")))))))) ->  | L16: =IF('Strain Pole 8 Input'!B$8=Lists!A$19,RESULTS!L$9,IF('Strain Pole 8 Input'!B$8=Lists!A$20,RESULTS!L$10,IF('Strain Pole 8 Input'!B$8=Lists!A$21,RESULTS!L$11,IF('Strain Pole 8 Input'!B$8=Lists!A$22,RESULTS!L$12,IF('Strain Pole 8 Input'!B$8=Lists!A$23,RESULTS!L$13,IF('Strain Pole 8 Input'!B$8=Lists!A$24,RESULTS!L$14,IF('Strain Pole 8 Input'!B$8=Lists!A$25,RESULTS!L$15,IF('Strain Pole 8 Input'!B$30="Yes","X","")))))))) ->  | M16: =IF('Strain Pole 8 Input'!B$8=Lists!A$19,RESULTS!M$9,IF('Strain Pole 8 Input'!B$8=Lists!A$20,RESULTS!M$10,IF('Strain Pole 8 Input'!B$8=Lists!A$21,RESULTS!M$11,IF('Strain Pole 8 Input'!B$8=Lists!A$22,RESULTS!M$12,IF('Strain Pole 8 Input'!B$8=Lists!A$23,RESULTS!M$13,IF('Strain Pole 8 Input'!B$8=Lists!A$24,RESULTS!M$14,IF('Strain Pole 8 Input'!B$8=Lists!A$25,RESULTS!M$15,IF('Strain Pole 8 Input'!B$25="No","X","")))))))) ->  | N16: =IF('Strain Pole 8 Input'!B$8=Lists!A$19,RESULTS!N$9,IF('Strain Pole 8 Input'!B$8=Lists!A$20,RESULTS!N$10,IF('Strain Pole 8 Input'!B$8=Lists!A$21,RESULTS!N$11,IF('Strain Pole 8 Input'!B$8=Lists!A$22,RESULTS!N$12,IF('Strain Pole 8 Input'!B$8=Lists!A$23,RESULTS!N$13,IF('Strain Pole 8 Input'!B$8=Lists!A$24,RESULTS!N$14,IF('Strain Pole 8 Input'!B$8=Lists!A$25,RESULTS!N$15,IF('Strain Pole 8 Input'!B$35="Yes","X","")))))))) ->  | O16: =IF('Strain Pole 8 Input'!B$8=Lists!A$19,RESULTS!O$9,IF('Strain Pole 8 Input'!B$8=Lists!A$20,RESULTS!O$10,IF('Strain Pole 8 Input'!B$8=Lists!A$21,RESULTS!O$11,IF('Strain Pole 8 Input'!B$8=Lists!A$22,RESULTS!O$12,IF('Strain Pole 8 Input'!B$8=Lists!A$23,RESULTS!O$13,IF('Strain Pole 8 Input'!B$8=Lists!A$24,RESULTS!O$14,IF('Strain Pole 8 Input'!B$8=Lists!A$25,RESULTS!O$15,IF('Strain Pole 8 Input'!B$39="Yes","X","")))))))) -> 
B17: Strain Pole 9 | C17: ='Strain Pole 9 Input'!C6 -> 0 | D17: =IF('Strain Pole 9 Input'!$B$8=Lists!$A$19,RESULTS!D$9,IF('Strain Pole 9 Input'!$B$8=Lists!$A$20,RESULTS!D$10,IF('Strain Pole 9 Input'!$B$8=Lists!$A$21,RESULTS!D$11,IF('Strain Pole 9 Input'!$B$8=Lists!$A$22,RESULTS!D$12,IF('Strain Pole 9 Input'!$B$8=Lists!$A$23,RESULTS!D$13,IF('Strain Pole 9 Input'!$B$8=Lists!$A$24,RESULTS!D$14,IF('Strain Pole 9 Input'!$B$8=Lists!$A$25,RESULTS!D$15,IF('Strain Pole 9 Input'!$B$8=Lists!$A$26,RESULTS!D$16,IF('Strain Pole 9 Input'!B$13="No","X",IF(AND(E$17:O$17="",'Strain Pole 9 Input'!B$48=Lists!A$2),"X","")))))))))) ->  | E17: =IF('Strain Pole 9 Input'!$B$8=Lists!$A$19,RESULTS!E$9,IF('Strain Pole 9 Input'!$B$8=Lists!$A$20,RESULTS!E$10,IF('Strain Pole 9 Input'!$B$8=Lists!$A$21,RESULTS!E$11,IF('Strain Pole 9 Input'!$B$8=Lists!$A$22,RESULTS!E$12,IF('Strain Pole 9 Input'!$B$8=Lists!$A$23,RESULTS!E$13,IF('Strain Pole 9 Input'!$B$8=Lists!$A$24,RESULTS!E$14,IF('Strain Pole 9 Input'!$B$8=Lists!$A$25,RESULTS!E$15,IF('Strain Pole 9 Input'!$B$8=Lists!$A$26,RESULTS!E$16,IF('Strain Pole 9 Input'!B$17="Full Replacement Recommended","X",IF('Strain Pole 9 Input'!B$24="Full Replacement Recommended","X",IF('Strain Pole 9 Input'!B$31="Full Replacement Recommended","X",""))))))))))) ->  | F17: =IF('Strain Pole 9 Input'!$B$8=Lists!$A$19,RESULTS!F$9,IF('Strain Pole 9 Input'!$B$8=Lists!$A$20,RESULTS!F$10,IF('Strain Pole 9 Input'!$B$8=Lists!$A$21,RESULTS!F$11,IF('Strain Pole 9 Input'!$B$8=Lists!$A$22,RESULTS!F$12,IF('Strain Pole 9 Input'!$B$8=Lists!$A$23,RESULTS!F$13,IF('Strain Pole 9 Input'!$B$8=Lists!$A$24,RESULTS!F$14,IF('Strain Pole 9 Input'!$B$8=Lists!$A$25,RESULTS!F$15,IF('Strain Pole 9 Input'!$B$8=Lists!$A$26,RESULTS!F$16,IF('Strain Pole 9 Input'!B$46="No","X",IF('Strain Pole 9 Input'!B$48=Lists!A$3,"X","")))))))))) ->  | G17: =IF('Strain Pole 9 Input'!$B$8=Lists!$A$19,RESULTS!G$9,IF('Strain Pole 9 Input'!$B$8=Lists!$A$20,RESULTS!G$10,IF('Strain Pole 9 Input'!$B$8=Lists!$A$21,RESULTS!G$11,IF('Strain Pole 9 Input'!$B$8=Lists!$A$22,RESULTS!G$12,IF('Strain Pole 9 Input'!$B$8=Lists!$A$23,RESULTS!G$13,IF('Strain Pole 9 Input'!$B$8=Lists!$A$24,RESULTS!G$14,IF('Strain Pole 9 Input'!$B$8=Lists!$A$25,RESULTS!G$15,IF('Strain Pole 9 Input'!$B$8=Lists!$A$26,RESULTS!G$16,IF('Strain Pole 9 Input'!B$28="Yes","X",IF(OR('Strain Pole 9 Input'!B$36="Yes",'Strain Pole 9 Input'!B$37="Yes"),"X",IF(OR('Strain Pole 9 Input'!B$40="Yes",'Strain Pole 9 Input'!B$41="Yes"),"X",""))))))))))) ->  | H17: =IF('Strain Pole 9 Input'!$B$8=Lists!$A$19,RESULTS!H$9,IF('Strain Pole 9 Input'!$B$8=Lists!$A$20,RESULTS!H$10,IF('Strain Pole 9 Input'!$B$8=Lists!$A$21,RESULTS!H$11,IF('Strain Pole 9 Input'!$B$8=Lists!$A$22,RESULTS!H$12,IF('Strain Pole 9 Input'!$B$8=Lists!$A$23,RESULTS!H$13,IF('Strain Pole 9 Input'!$B$8=Lists!$A$24,RESULTS!H$14,IF('Strain Pole 9 Input'!$B$8=Lists!$A$25,RESULTS!H$15,IF('Strain Pole 9 Input'!$B$8=Lists!$A$26,RESULTS!H$16,IF('Strain Pole 9 Input'!B$21="Not Rated","X",IF(OR('Strain Pole 9 Input'!B$40="Yes",'Strain Pole 9 Input'!B$41="Yes"),"X",IF('Strain Pole 9 Input'!B$46="No","X",""))))))))))) ->  | I17: =IF('Strain Pole 9 Input'!$B$8=Lists!$A$19,RESULTS!H$9,IF('Strain Pole 9 Input'!$B$8=Lists!$A$20,RESULTS!H$10,IF('Strain Pole 9 Input'!$B$8=Lists!$A$21,RESULTS!H$11,IF('Strain Pole 9 Input'!$B$8=Lists!$A$22,RESULTS!H$12,IF('Strain Pole 9 Input'!$B$8=Lists!$A$23,RESULTS!H$13,IF('Strain Pole 9 Input'!$B$8=Lists!$A$24,RESULTS!H$14,IF('Strain Pole 9 Input'!$B$8=Lists!$A$25,RESULTS!H$15,IF('Strain Pole 9 Input'!$B$8=Lists!$A$26,RESULTS!H$16,IF('Strain Pole 9 Input'!B$37="Yes","X",IF('Strain Pole 9 Input'!B$41="Yes","X",IF('Strain Pole 9 Input'!B$46="No","X",""))))))))))) ->  | J17: =IF('Strain Pole 9 Input'!$B$8=Lists!$A$19,RESULTS!J$9,IF('Strain Pole 9 Input'!$B$8=Lists!$A$20,RESULTS!J$10,IF('Strain Pole 9 Input'!$B$8=Lists!$A$21,RESULTS!J$11,IF('Strain Pole 9 Input'!$B$8=Lists!$A$22,RESULTS!J$12,IF('Strain Pole 9 Input'!$B$8=Lists!$A$23,RESULTS!J$13,IF('Strain Pole 9 Input'!$B$8=Lists!$A$24,RESULTS!J$14,IF('Strain Pole 9 Input'!$B$8=Lists!$A$25,RESULTS!J$15,IF('Strain Pole 9 Input'!$B$8=Lists!$A$26,RESULTS!J$16,IF('Strain Pole 9 Input'!B$29="Yes","X",""))))))))) ->  | K17: =IF('Strain Pole 9 Input'!$B$8=Lists!$A$19,RESULTS!K$9,IF('Strain Pole 9 Input'!$B$8=Lists!$A$20,RESULTS!K$10,IF('Strain Pole 9 Input'!$B$8=Lists!$A$21,RESULTS!K$11,IF('Strain Pole 9 Input'!$B$8=Lists!$A$22,RESULTS!K$12,IF('Strain Pole 9 Input'!$B$8=Lists!$A$23,RESULTS!K$13,IF('Strain Pole 9 Input'!$B$8=Lists!$A$24,RESULTS!K$14,IF('Strain Pole 9 Input'!$B$8=Lists!$A$25,RESULTS!K$15,IF('Strain Pole 9 Input'!$B$8=Lists!$A$26,RESULTS!K$16,IF('Strain Pole 9 Input'!B$28="Yes","X",""))))))))) ->  | L17: =IF('Strain Pole 9 Input'!$B$8=Lists!$A$19,RESULTS!L$9,IF('Strain Pole 9 Input'!$B$8=Lists!$A$20,RESULTS!L$10,IF('Strain Pole 9 Input'!$B$8=Lists!$A$21,RESULTS!L$11,IF('Strain Pole 9 Input'!$B$8=Lists!$A$22,RESULTS!L$12,IF('Strain Pole 9 Input'!$B$8=Lists!$A$23,RESULTS!L$13,IF('Strain Pole 9 Input'!$B$8=Lists!$A$24,RESULTS!L$14,IF('Strain Pole 9 Input'!$B$8=Lists!$A$25,RESULTS!L$15,IF('Strain Pole 9 Input'!$B$8=Lists!$A$26,RESULTS!L$16,IF('Strain Pole 9 Input'!B$30="Yes","X",""))))))))) ->  | M17: =IF('Strain Pole 9 Input'!$B$8=Lists!$A$19,RESULTS!M$9,IF('Strain Pole 9 Input'!$B$8=Lists!$A$20,RESULTS!M$10,IF('Strain Pole 9 Input'!$B$8=Lists!$A$21,RESULTS!M$11,IF('Strain Pole 9 Input'!$B$8=Lists!$A$22,RESULTS!M$12,IF('Strain Pole 9 Input'!$B$8=Lists!$A$23,RESULTS!M$13,IF('Strain Pole 9 Input'!$B$8=Lists!$A$24,RESULTS!M$14,IF('Strain Pole 9 Input'!$B$8=Lists!$A$25,RESULTS!M$15,IF('Strain Pole 9 Input'!$B$8=Lists!$A$26,RESULTS!M$16,IF('Strain Pole 9 Input'!B$25="No","X",""))))))))) ->  | N17: =IF('Strain Pole 9 Input'!$B$8=Lists!$A$19,RESULTS!N$9,IF('Strain Pole 9 Input'!$B$8=Lists!$A$20,RESULTS!N$10,IF('Strain Pole 9 Input'!$B$8=Lists!$A$21,RESULTS!N$11,IF('Strain Pole 9 Input'!$B$8=Lists!$A$22,RESULTS!N$12,IF('Strain Pole 9 Input'!$B$8=Lists!$A$23,RESULTS!N$13,IF('Strain Pole 9 Input'!$B$8=Lists!$A$24,RESULTS!N$14,IF('Strain Pole 9 Input'!$B$8=Lists!$A$25,RESULTS!N$15,IF('Strain Pole 9 Input'!$B$8=Lists!$A$26,RESULTS!N$16,IF('Strain Pole 9 Input'!B$35="Yes","X",""))))))))) ->  | O17: =IF('Strain Pole 9 Input'!$B$8=Lists!$A$19,RESULTS!O$9,IF('Strain Pole 9 Input'!$B$8=Lists!$A$20,RESULTS!O$10,IF('Strain Pole 9 Input'!$B$8=Lists!$A$21,RESULTS!O$11,IF('Strain Pole 9 Input'!$B$8=Lists!$A$22,RESULTS!O$12,IF('Strain Pole 9 Input'!$B$8=Lists!$A$23,RESULTS!O$13,IF('Strain Pole 9 Input'!$B$8=Lists!$A$24,RESULTS!O$14,IF('Strain Pole 9 Input'!$B$8=Lists!$A$25,RESULTS!O$15,IF('Strain Pole 9 Input'!$B$8=Lists!$A$26,RESULTS!O$16,IF('Strain Pole 9 Input'!B$39="Yes","X",""))))))))) -> 
B18: Strain Pole 10 | C18: ='Strain Pole 10 Input'!C6 -> 0 | D18: =IF('Strain Pole 10 Input'!$B$8=Lists!$A$19,RESULTS!D$9,IF('Strain Pole 10 Input'!$B$8=Lists!$A$20,RESULTS!D$10,IF('Strain Pole 10 Input'!$B$8=Lists!$A$21,RESULTS!D$11,IF('Strain Pole 10 Input'!$B$8=Lists!$A$22,RESULTS!D$12,IF('Strain Pole 10 Input'!$B$8=Lists!$A$23,RESULTS!D$13,IF('Strain Pole 10 Input'!$B$8=Lists!$A$24,RESULTS!D$14,IF('Strain Pole 10 Input'!$B$8=Lists!$A$25,RESULTS!D$15,IF('Strain Pole 10 Input'!$B$8=Lists!$A$26,RESULTS!D$16,IF('Strain Pole 10 Input'!$B$8=Lists!$A$27,RESULTS!D$17,IF('Strain Pole 10 Input'!B$13="No","X",IF(AND(E$18:O$18="",'Strain Pole 10 Input'!B$48=Lists!A$2),"X",""))))))))))) ->  | E18: =IF('Strain Pole 10 Input'!$B$8=Lists!$A$19,RESULTS!E$9,IF('Strain Pole 10 Input'!$B$8=Lists!$A$20,RESULTS!E$10,IF('Strain Pole 10 Input'!$B$8=Lists!$A$21,RESULTS!E$11,IF('Strain Pole 10 Input'!$B$8=Lists!$A$22,RESULTS!E$12,IF('Strain Pole 10 Input'!$B$8=Lists!$A$23,RESULTS!E$13,IF('Strain Pole 10 Input'!$B$8=Lists!$A$24,RESULTS!E$14,IF('Strain Pole 10 Input'!$B$8=Lists!$A$25,RESULTS!E$15,IF('Strain Pole 10 Input'!$B$8=Lists!$A$26,RESULTS!E$16,IF('Strain Pole 10 Input'!$B$8=Lists!$A$27,RESULTS!E$17,IF('Strain Pole 10 Input'!B$17="Full Replacement Recommended","X",IF('Strain Pole 10 Input'!B$24="Full Replacement Recommended","X",IF('Strain Pole 10 Input'!B$31="Full Replacement Recommended","X","")))))))))))) ->  | F18: =IF('Strain Pole 10 Input'!$B$8=Lists!$A$19,RESULTS!F$9,IF('Strain Pole 10 Input'!$B$8=Lists!$A$20,RESULTS!F$10,IF('Strain Pole 10 Input'!$B$8=Lists!$A$21,RESULTS!F$11,IF('Strain Pole 10 Input'!$B$8=Lists!$A$22,RESULTS!F$12,IF('Strain Pole 10 Input'!$B$8=Lists!$A$23,RESULTS!F$13,IF('Strain Pole 10 Input'!$B$8=Lists!$A$24,RESULTS!F$14,IF('Strain Pole 10 Input'!$B$8=Lists!$A$25,RESULTS!F$15,IF('Strain Pole 10 Input'!$B$8=Lists!$A$26,RESULTS!F$16,IF('Strain Pole 10 Input'!$B$8=Lists!$A$27,RESULTS!F$17,IF('Strain Pole 10 Input'!B$46="No","X",IF('Strain Pole 10 Input'!B$48=Lists!A$3,"X",""))))))))))) ->  | G18: =IF('Strain Pole 10 Input'!$B$8=Lists!$A$19,RESULTS!G$9,IF('Strain Pole 10 Input'!$B$8=Lists!$A$20,RESULTS!G$10,IF('Strain Pole 10 Input'!$B$8=Lists!$A$21,RESULTS!G$11,IF('Strain Pole 10 Input'!$B$8=Lists!$A$22,RESULTS!G$12,IF('Strain Pole 10 Input'!$B$8=Lists!$A$23,RESULTS!G$13,IF('Strain Pole 10 Input'!$B$8=Lists!$A$24,RESULTS!G$14,IF('Strain Pole 10 Input'!$B$8=Lists!$A$25,RESULTS!G$15,IF('Strain Pole 10 Input'!$B$8=Lists!$A$26,RESULTS!G$16,IF('Strain Pole 10 Input'!$B$8=Lists!$A$27,RESULTS!G$17,IF('Strain Pole 10 Input'!B$28="Yes","X",IF(OR('Strain Pole 10 Input'!B$36="Yes",'Strain Pole 10 Input'!B$37="Yes"),"X",IF(OR('Strain Pole 10 Input'!B$40="Yes",'Strain Pole 10 Input'!B$41="Yes"),"X","")))))))))))) ->  | H18: =IF('Strain Pole 10 Input'!$B$8=Lists!$A$19,RESULTS!H$9,IF('Strain Pole 10 Input'!$B$8=Lists!$A$20,RESULTS!H$10,IF('Strain Pole 10 Input'!$B$8=Lists!$A$21,RESULTS!H$11,IF('Strain Pole 10 Input'!$B$8=Lists!$A$22,RESULTS!H$12,IF('Strain Pole 10 Input'!$B$8=Lists!$A$23,RESULTS!H$13,IF('Strain Pole 10 Input'!$B$8=Lists!$A$24,RESULTS!H$14,IF('Strain Pole 10 Input'!$B$8=Lists!$A$25,RESULTS!H$15,IF('Strain Pole 10 Input'!$B$8=Lists!$A$26,RESULTS!H$16,IF('Strain Pole 10 Input'!$B$8=Lists!$A$27,RESULTS!H$17,IF('Strain Pole 10 Input'!B$21="Not Rated","X",IF(OR('Strain Pole 10 Input'!B$40="Yes",'Strain Pole 10 Input'!B$41="Yes"),"X",IF('Strain Pole 10 Input'!B$46="No","X","")))))))))))) ->  | I18: =IF('Strain Pole 10 Input'!$B$8=Lists!$A$19,RESULTS!I$9,IF('Strain Pole 10 Input'!$B$8=Lists!$A$20,RESULTS!I$10,IF('Strain Pole 10 Input'!$B$8=Lists!$A$21,RESULTS!I$11,IF('Strain Pole 10 Input'!$B$8=Lists!$A$22,RESULTS!I$12,IF('Strain Pole 10 Input'!$B$8=Lists!$A$23,RESULTS!I$13,IF('Strain Pole 10 Input'!$B$8=Lists!$A$24,RESULTS!I$14,IF('Strain Pole 10 Input'!$B$8=Lists!$A$25,RESULTS!I$15,IF('Strain Pole 10 Input'!$B$8=Lists!$A$26,RESULTS!I$16,IF('Strain Pole 10 Input'!$B$8=Lists!$A$27,RESULTS!I$17,IF('Strain Pole 10 Input'!B$37="Yes","X",IF('Strain Pole 10 Input'!B$41="Yes","X",IF('Strain Pole 10 Input'!B$46="No","X","")))))))))))) ->  | J18: =IF('Strain Pole 10 Input'!$B$8=Lists!$A$19,RESULTS!J$9,IF('Strain Pole 10 Input'!$B$8=Lists!$A$20,RESULTS!J$10,IF('Strain Pole 10 Input'!$B$8=Lists!$A$21,RESULTS!J$11,IF('Strain Pole 10 Input'!$B$8=Lists!$A$22,RESULTS!J$12,IF('Strain Pole 10 Input'!$B$8=Lists!$A$23,RESULTS!J$13,IF('Strain Pole 10 Input'!$B$8=Lists!$A$24,RESULTS!J$14,IF('Strain Pole 10 Input'!$B$8=Lists!$A$25,RESULTS!J$15,IF('Strain Pole 10 Input'!$B$8=Lists!$A$26,RESULTS!J$16,IF('Strain Pole 10 Input'!$B$8=Lists!$A$27,RESULTS!J$17,IF('Strain Pole 10 Input'!B$29="Yes","X","")))))))))) ->  | K18: =IF('Strain Pole 10 Input'!$B$8=Lists!$A$19,RESULTS!K$9,IF('Strain Pole 10 Input'!$B$8=Lists!$A$20,RESULTS!K$10,IF('Strain Pole 10 Input'!$B$8=Lists!$A$21,RESULTS!K$11,IF('Strain Pole 10 Input'!$B$8=Lists!$A$22,RESULTS!K$12,IF('Strain Pole 10 Input'!$B$8=Lists!$A$23,RESULTS!K$13,IF('Strain Pole 10 Input'!$B$8=Lists!$A$24,RESULTS!K$14,IF('Strain Pole 10 Input'!$B$8=Lists!$A$25,RESULTS!K$15,IF('Strain Pole 10 Input'!$B$8=Lists!$A$26,RESULTS!K$16,IF('Strain Pole 10 Input'!$B$8=Lists!$A$27,RESULTS!K$17,IF('Strain Pole 10 Input'!B$28="Yes","X","")))))))))) ->  | L18: =IF('Strain Pole 10 Input'!$B$8=Lists!$A$19,RESULTS!L$9,IF('Strain Pole 10 Input'!$B$8=Lists!$A$20,RESULTS!L$10,IF('Strain Pole 10 Input'!$B$8=Lists!$A$21,RESULTS!L$11,IF('Strain Pole 10 Input'!$B$8=Lists!$A$22,RESULTS!L$12,IF('Strain Pole 10 Input'!$B$8=Lists!$A$23,RESULTS!L$13,IF('Strain Pole 10 Input'!$B$8=Lists!$A$24,RESULTS!L$14,IF('Strain Pole 10 Input'!$B$8=Lists!$A$25,RESULTS!L$15,IF('Strain Pole 10 Input'!$B$8=Lists!$A$26,RESULTS!L$16,IF('Strain Pole 10 Input'!$B$8=Lists!$A$27,RESULTS!L$17,IF('Strain Pole 10 Input'!B$30="Yes","X","")))))))))) ->  | M18: =IF('Strain Pole 10 Input'!$B$8=Lists!$A$19,RESULTS!M$9,IF('Strain Pole 10 Input'!$B$8=Lists!$A$20,RESULTS!M$10,IF('Strain Pole 10 Input'!$B$8=Lists!$A$21,RESULTS!M$11,IF('Strain Pole 10 Input'!$B$8=Lists!$A$22,RESULTS!M$12,IF('Strain Pole 10 Input'!$B$8=Lists!$A$23,RESULTS!M$13,IF('Strain Pole 10 Input'!$B$8=Lists!$A$24,RESULTS!M$14,IF('Strain Pole 10 Input'!$B$8=Lists!$A$25,RESULTS!M$15,IF('Strain Pole 10 Input'!$B$8=Lists!$A$26,RESULTS!M$16,IF('Strain Pole 10 Input'!$B$8=Lists!$A$27,RESULTS!M$17,IF('Strain Pole 10 Input'!B$25="No","X","")))))))))) ->  | N18: =IF('Strain Pole 10 Input'!$B$8=Lists!$A$19,RESULTS!N$9,IF('Strain Pole 10 Input'!$B$8=Lists!$A$20,RESULTS!N$10,IF('Strain Pole 10 Input'!$B$8=Lists!$A$21,RESULTS!N$11,IF('Strain Pole 10 Input'!$B$8=Lists!$A$22,RESULTS!N$12,IF('Strain Pole 10 Input'!$B$8=Lists!$A$23,RESULTS!N$13,IF('Strain Pole 10 Input'!$B$8=Lists!$A$24,RESULTS!N$14,IF('Strain Pole 10 Input'!$B$8=Lists!$A$25,RESULTS!N$15,IF('Strain Pole 10 Input'!$B$8=Lists!$A$26,RESULTS!N$16,IF('Strain Pole 10 Input'!$B$8=Lists!$A$27,RESULTS!N$17,IF('Strain Pole 10 Input'!B$35="Yes","X","")))))))))) ->  | O18: =IF('Strain Pole 10 Input'!$B$8=Lists!$A$19,RESULTS!O$9,IF('Strain Pole 10 Input'!$B$8=Lists!$A$20,RESULTS!O$10,IF('Strain Pole 10 Input'!$B$8=Lists!$A$21,RESULTS!O$11,IF('Strain Pole 10 Input'!$B$8=Lists!$A$22,RESULTS!O$12,IF('Strain Pole 10 Input'!$B$8=Lists!$A$23,RESULTS!O$13,IF('Strain Pole 10 Input'!$B$8=Lists!$A$24,RESULTS!O$14,IF('Strain Pole 10 Input'!$B$8=Lists!$A$25,RESULTS!O$15,IF('Strain Pole 10 Input'!$B$8=Lists!$A$26,RESULTS!O$16,IF('Strain Pole 10 Input'!$B$8=Lists!$A$27,RESULTS!O$17,IF('Strain Pole 10 Input'!B$39="Yes","X","")))))))))) -> 

Sheet Equipment Loading (hidden)
A1: Code | B1: Description | C1: Comment/Detail | D1: Code | E1: Weight*** (lbs) | F1: Trans Area (sft) | G1: Par Area (sft) | H1: Bot Area (sft) | I1: Height** | K1: Width (ft) | L1: Depth (ft) | M1: Unit Cost ($/each)
I2: inches | J2: feet
A4: 1W-1C | E4: 17 | F4: 1.36 | G4: 1.49 | H4: 1.53 | I4: 14 | J4: =I4/12 -> 1.166666667 | K4: =F4/J4 -> 1.165714286 | L4: =H4/J4 -> 1.311428571
A5: 1W-1C w/BP | E5: 21 | F5: 4 | G5: 1.59 | H5: 1.53 | I5: 24 | J5: 2 | K5: 2 | L5: 0.765 | M5: 1000
A6: 1W-1C w/CS | E6: 49 | F6: 3.61 | G6: 2.15 | H6: 2.25 | I6: =I4+12 -> 26 | J6: 2.166666667 | K6: 1.666153846 | L6: 1.038461538
A7: 1W-1C w/CS w/BP | E7: 53 | F7: 6.25 | G7: 2.26 | H7: 2.25 | I7: =I5+12 -> 36 | J7: 3 | K7: 2.083333333 | L7: 0.75 | M7: 1200
A8: 1W-2C PED | E8: 27 | F8: 2.72 | G8: 3.97 | H8: 1.53 | I8: 28 | J8: 2.333333333 | K8: 1.165714286 | L8: 0.6557142857
A9: 1W-2C PED w/BP | E9: 32 | F9: 6.33 | G9: 4.14 | H9: 1.53 | I9: 38 | J9: 3.166666667 | K9: 1.998947368 | L9: 0.4831578947 | M9: 100
A10: 1W-2C PED w/CS | E10: 59 | F10: 4.97 | G10: 4.64 | H10: 2.25 | I10: =I8+12 -> 40 | J10: 3.333333333 | K10: 1.491 | L10: 0.675 | M10: 100
A11: 1W-2C PED w/ CS w/BP | E11: 64 | F11: 8.58 | G11: 4.8 | H11: 2.25 | I11: =I9+12 -> 50 | J11: 4.166666667 | K11: 2.0592 | L11: 0.54 | M11: 100
A12: 1W-3C | E12: 37 | F12: 4.08 | G12: 4.46 | H12: 1.53 | I12: 42 | J12: 3.5 | K12: 1.165714286 | L12: 0.4371428571 | M12: 100
A13: 1W-3C w/BP | E13: 43 | F13: 8.67 | G13: 4.68 | H13: 1.53 | I13: 52 | J13: 4.333333333 | K13: 2.000769231 | L13: 0.3530769231 | M13: 100
A14: 1W-3C w/CS | E14: 69 | F14: 6.33 | G14: 5.125 | H14: 2.25 | I14: =I12+12 -> 54 | J14: 4.5 | K14: 1.406666667 | L14: 0.5 | M14: 100
A15: 1W-3C w/CS w/BP | E15: 75 | F15: 10.92 | G15: 5.35 | H15: 2.25 | I15: =I13+12 -> 64 | J15: 5.333333333 | K15: 2.0475 | L15: 0.421875 | M15: 100
A16: 1W-4C | E16: 43 | F16: 5.44 | G16: 5.94 | H16: 1.53 | I16: 56 | J16: 4.666666667 | K16: 1.165714286 | L16: 0.3278571429 | M16: 100
A17: 1W-4C w/BP | E17: 50 | F17: 11 | G17: 6.23 | H17: 1.53 | I17: 66 | J17: 5.5 | K17: 2 | L17: 0.2781818182 | M17: 100
A18: 1W-4C w/CS | E18: 75 | F18: 7.69 | G18: 6.61 | H18: 2.25 | I18: =I16+12 -> 68 | J18: 5.666666667 | K18: 1.357058824 | L18: 0.3970588235 | M18: 100
A19: 1W-4C w/CS w/BP | E19: 82 | F19: 13.25 | G19: 6.9 | H19: 2.25 | I19: =I17+12 -> 78 | J19: 6.5 | K19: 2.038461538 | L19: 0.3461538462 | M19: 100
A20: 1W-5C (doghouse) | E20: 61 | F20: 6.81 | G20: 4.46 | H20: 3.02 | I20: 42 | J20: 3.5 | K20: 1.945714286 | L20: 0.8628571429 | M20: 100
A21: 1W-5C (doghouse) w/BP | E21: 69 | F21: 13.72 | G21: 4.68 | H21: 3.02 | I21: 52 | J21: 4.333333333 | K21: 3.166153846 | L21: 0.6969230769 | M21: 100
A22: 1W-5C (doghouse) w/CS | E22: 93 | F22: 9.06 | G22: 5.125 | H22: 3.02 | I22: =I20+12 -> 54 | J22: 4.5 | K22: 2.013333333 | L22: 0.6711111111 | M22: 100
A23: 1W-5C (doghouse) w/CS w/BP | E23: 101 | F23: 15.97 | G23: 5.35 | H23: 3.02 | I23: =I21+12 -> 64 | J23: 5.333333333 | K23: 2.994375 | L23: 0.56625 | M23: 100
A24: 1W 12x27 Non-iLL CS | E24: 32 | F24: 2.25 | G24: 0.67 | H24: 1.5 | I24: 12 | J24: 1 | K24: 2.25 | L24: =H24/K24 -> 0.6666666667 | M24: 100
A25: 1W 24x30 Non-iLL CS | E25: 45 | F25: 5 | G25: 1.33 | H25: 1.67 | I25: 24 | J25: 2 | K25: 2.5 | L25: 0.668 | M25: 100
A26: 1W 24x96 Street Name Sign | E26: 90 | F26: 14.93 | G26: 1.29 | H26: 3.93 | I26: 24 | J26: 2 | K26: 7.465 | L26: 0.5264567984 | M26: 100
A27: 1W 36x36 Non-iLL CS | E27: 63.90909091 | F27: 9 | G27: 2 | H27: 2 | I27: 36 | J27: 3 | K27: 3 | L27: 0.6666666667 | M27: 100
A28: 1W 12x27 LED CS | E28: 41.92 | F28: 2.25 | G28: 0.67 | H28: 1.5 | I28: 12 | J28: 1 | K28: 2.25 | L28: 0.6666666667 | M28: 100
A29: 1W 24x30 LED CS | E29: 58.95 | F29: 5 | G29: 1.33 | H29: 1.67 | I29: 24 | J29: 2 | K29: 2.5 | L29: 0.668 | M29: 100
A30: 1W 36x36 LED CS | E30: 83.72090909 | F30: 9 | G30: 2 | H30: 2 | I30: 36 | J30: 3 | K30: 3 | L30: 0.6666666667 | M30: 100
A31: Pole Mounted Ped Signal | E31: 25 | F31: 1.778 | G31: 0.889 | M31: 100
A32: Antenna | E32: 20 | F32: 0.09 | G32: =F32 -> 0.09 | H32: =K32*L32 -> 0.006944444444 | I32: 12.96 | J32: =I32/12 -> 1.08 | K32: =1/12 -> 0.08333333333 | L32: =1/12 -> 0.08333333333 | M32: 100
A33: GPM Module | E33: 30 | F33: 0.75 | G33: =F33 -> 0.75 | H33: =F33 -> 0.75 | I33: 10.39230485 | J33: =I33/12 -> 0.8660254038 | K33: =SQRT($F$33) -> 0.8660254038 | L33: =SQRT($F$33) -> 0.8660254038 | M33: 100
A34: Hemispherical Video Detection | E34: 22.4 | F34: 2.11 | G34: 2.11 | H34: 2.02 | I34: 30 | J34: =I34/12 -> 2.5 | K34: 1.42 | L34: 1.42 | M34: 100
A35: Microwave Vehicle Detector | E35: 4.2 | F35: 0.97 | G35: =F35 -> 0.97 | H35: =F35 -> 0.97 | I35: 11.83080724 | J35: =I35/12 -> 0.9859006035 | K35: =SQRT($F$35) -> 0.9848857802 | L35: =SQRT($F$35) -> 0.9848857802 | M35: 100
A36: Radar Vehicle Detector | E36: 4.2 | F36: 0.97 | G36: =F36 -> 0.97 | H36: =F36 -> 0.97 | I36: 11.83080724 | J36: =I36/12 -> 0.9859006035 | K36: =SQRT($F$35) -> 0.9848857802 | L36: =SQRT($F$35) -> 0.9848857802 | M36: 100
A41: Strain Pole Loading Table*
A42: Span Length | B42: Weight of Generalized Load (lbs)** | C42: Weight of Generalized Load w/ BP (lbs)** | D42: Perp. Wind Area w/o BP (sft)** | E42: Par. Wind Area w/o BP (sft)** | F42: Perp. Wind Area w/ BP (sft)** | G42: Par. Wind Area w/ BP (sft)**
A43: up to 100 ft | B43: 151.84 | C43: 170.56 | D43: 14.105 | E43: 13.65 | F43: 26.39 | G43: 14.56
A44: 101 ft to 120 ft | B44: 151.84 | C44: 170.56 | D44: 14.105 | E44: 13.65 | F44: 26.39 | G44: 14.56
A45: 121 ft to 150 ft | B45: 151.84 | C45: 170.56 | D45: 14.105 | E45: 13.65 | F45: 26.39 | G45: 14.56
A46: *As Developed from analysis cases run in the 2010 Report + MDOT provided examples.
A47: **Weights and Areas include allowance for signals, signs and anything else carried by the cables.

Sheet Lists (hidden)
A2: Yes
A3: No
A5: Yes
A6: No
A7: Unknown
A9: Yes
A10: No
A11: Not Rated
A13: 2023 Statewide Special Details
A14: 6-Bolt Pole
A15: 4-Bolt Pole
A17: Yes
A18: No
A19: Pole 1
A20: Pole 2
A21: Pole 3
A22: Pole 4
A23: Pole 5
A24: Pole 6
A25: Pole 7
A26: Pole 8
A27: Pole 9
A30: =CONCATENATE("'",RESULTS!B9," Input'!B$2=Lists!A$20") -> 'Strain Pole 1 Input'!B$2=Lists!A$20
A31: =CONCATENATE("'",RESULTS!B10," Input'!B$2=Lists!A$") -> 'Strain Pole 2 Input'!B$2=Lists!A$
A32: =CONCATENATE("'",RESULTS!B11," Input'!B$2=Lists!A$") -> 'Strain Pole 3 Input'!B$2=Lists!A$
A33: =CONCATENATE("'",RESULTS!B12," Input'!B$2=Lists!A$") -> 'Strain Pole 4 Input'!B$2=Lists!A$
A34: =CONCATENATE("'",RESULTS!B13," Input'!B$2=Lists!A$") -> 'Strain Pole 5 Input'!B$2=Lists!A$
A35: =CONCATENATE("'",RESULTS!B14," Input'!B$2=Lists!A$") -> 'Strain Pole 6 Input'!B$2=Lists!A$
A36: =CONCATENATE("'",RESULTS!B15," Input'!B$2=Lists!A$") -> 'Strain Pole 7 Input'!B$2=Lists!A$
A37: =CONCATENATE("'",RESULTS!B16," Input'!B$2=Lists!A$") -> 'Strain Pole 8 Input'!B$2=Lists!A$
A38: =CONCATENATE("'",RESULTS!B17," Input'!B$2=Lists!A$") -> 'Strain Pole 9 Input'!B$2=Lists!A$
A39: =CONCATENATE("'",RESULTS!B18," Input'!B$2=Lists!A$") -> 'Strain Pole 10 Input'!B$2=Lists!A$
